{"text_format":"1","workbook":"xlsx","n_sheets":8,"sheets":["BAZA_in_sifranti","VBA","NAVODILA","Osnovni_podatki","Lokalne_skupnosti","Ukrepi_casovnica","Ukrepi_ucinki","Povezani_podatki"],"not_rendered":{"charts":0,"images":2,"macros":1,"external_links":0,"defined_names":5,"comments":2,"pivot_tables":0},"unopened":[],"bounds":{"document_bytes":16777216,"sheet_cells":100000,"rows_first":2000,"rows_last":500,"rows_between":2000,"halvings":0,"cell_chars":16384,"cell_head_chars":4096},"cells_cut":0,"cells_raw":0,"read":"whole","date_system":"1900"}

{"sheet":"BAZA_in_sifranti","index":0,"n_rows":215,"n_cols":30,"rows_kept":215,"cut":false,"hidden":true,"merged":[[36,12,36,14],[1,17,1,18],[1,24,1,25],[7,24,7,25],[1,20,1,22],[1,1,1,4],[1,6,1,15],[33,6,33,15],[34,12,34,14],[35,12,35,14]]}
[]
[null,"Lokalne skupnosti",null,null,null,null,"Poslovni subjekti",null,null,null,null,null,null,null,null,null,null,"Plini",null,null,"Ukrepi",null,null,null,"Viri financiranja",null,null,"Da/Ne",null,"Material primernost"]
[null,"ID_LS","Naziv lokalne skupnosti","Skrajšan naziv LS","Poštne številke",null,"ID_OPS","NAZIV_OPS-L","NAZIV_OS-S","Naslov","PPT","PPT_ST","NaslovS","Matična","ID_ODS","DATOTEKA",null,"ID_Plin","Ime",null,"ID_UKR","Ukrep","Kratek opis",null,"ID_vir_fin","Vir financiranja",null,"dane",null,"Prim"]
[null,1,"Mestna občina Celje","Celje",null,null,1,"ADRIAPLIN d.o.o.","ADRIAPLIN","Dunajska cesta 7","Ljubljana",1000,"Dunajska cesta 7, 1000 Ljubljana","5865379000","AP",{"$f":"CONCATENATE($P$37,tab_BAZA_PS[[#This Row],[NAZIV_OS-S]])","v":"ZP_ODS-ZB_PR_UKR_20260519_103852-ADRIAPLIN"},null,"PL_1","Biometan",null,"UK_1","Analiza zahtev, prilagojenosti materialov in elementov ter potrebnih ukrepov v plinovodnem sistemu za prevzem plinov obnovljivega ali nefosilnega izvora (vključno z vodikom)","Analiza - plinovodni sistem",null,"a.","Lastni viri financiranja",null,"Da",null,"Primeren"]
[null,2,"Mestna občina Koper","Koper",null,null,2,"DOMPLAN, d.d.","DOMPLAN","Bleiweisova cesta 14","Kranj",4000,"Bleiweisova cesta 14, 4000 Kranj","5015375000","DP",{"$f":"CONCATENATE($P$37,tab_BAZA_PS[[#This Row],[NAZIV_OS-S]])","v":"ZP_ODS-ZB_PR_UKR_20260519_103852-DOMPLAN"},null,"PL_2","Sintetični metan",null,"UK_2","Analiza zahtev ter prilagojenosti materialov in naprav uporabnikov plinovodnega sistema za delovanje ob prevzemu plina obnovljivega ali nefosilnega izvora ter vodika","Analiza - uporabniki plinovodnega sistema",null,"b.","Tuji viri financiranja (posojila, brez nepovratnih sredstev)",null,"Ne",null,"Prirmeren s prilagoditvami"]
[null,3,"Mestna občina Kranj","Kranj",null,null,3,"ENERGETIKA CELJE, d.o.o.","ENERGETIKA_CE","Smrekarjeva ulica 1","Celje",3000,"Smrekarjeva ulica 1, 3000 Celje","5914531000","EC",{"$f":"CONCATENATE($P$37,tab_BAZA_PS[[#This Row],[NAZIV_OS-S]])","v":"ZP_ODS-ZB_PR_UKR_20260519_103852-ENERGETIKA_CE"},null,"PL_3","Vodik",null,"UK_3","Priprava tehnične dokumentacije, ki vsebuje tudi vse potrebne varnostne zahteve, ocene, analize, načrte, ki vključujejo gradbena dela, strojno in elektro opremo, ter druge podlage ","Tehnična dokumentacija",null,"c.","Tuji viri financiranja (nepovratna sredstva)",null,null,null,"Neprimeren"]
[null,4,"Mestna občina Ljubljana","Ljubljana",null,null,4,"ENOS, d.d.","ENOS_DD","Cesta železarjev 8","Jesenice",4270,"Cesta železarjev 8, 4270 Jesenice","5852498000","EN",{"$f":"CONCATENATE($P$37,tab_BAZA_PS[[#This Row],[NAZIV_OS-S]])","v":"ZP_ODS-ZB_PR_UKR_20260519_103852-ENOS_DD"},null,null,null,null,"UK_4","Predelava plinovodov v sistemu na prevzem plinov obnovljivega ali nefosilnega izvora ter vodika v sistem, kar se nanaša na cevovode, tesnenje, katodno zaščito in druge dele sistema ","Predelava plinovodov (cevovodi, tesnenje, katodna zaščita, idr.)"]
[null,5,"Mestna občina Maribor","Maribor",null,null,5,"ISTRABENZ PLINI d.o.o.","ISTRABENZ_PLINI","Bertoki, Sermin 8A","Koper",6000,"Bertoki, Sermin 8A, 6000 Koper","5419263000","IP",{"$f":"CONCATENATE($P$37,tab_BAZA_PS[[#This Row],[NAZIV_OS-S]])","v":"ZP_ODS-ZB_PR_UKR_20260519_103852-ISTRABENZ_PLINI"},null,null,null,null,"UK_5","Gradbena dela, ki so potrebna za predelavo plinovodov iz prejšnje točke","Gradbena dela",null,"Kombinacije virov financiranja",null,null,"Ocene"]
[null,6,"Mestna občina Murska Sobota","Murska Sobota",null,null,6,"ENERGETIKA LJUBLJANA, d.o.o.","ENERGETIKA_LJ","Verovškova ulica 62","Ljubljana",1000,"Verovškova ulica 62, 1000 Ljubljana","5226406000","EL",{"$f":"CONCATENATE($P$37,tab_BAZA_PS[[#This Row],[NAZIV_OS-S]])","v":"ZP_ODS-ZB_PR_UKR_20260519_103852-ENERGETIKA_LJ"},null,null,null,null,"UK_6","Predelava ali zamenjava ventilov in krmilnih ter regulacijskih sistemov plinovodov v sistemu na prevzem plinov obnovljivega ali nefosilnega izvora ter vodika v sistem ter obratovanje s temi plini","Predelava ali zamenjava ventilov ter regulacijskih sistemov",null,"Zap.st","Kombinacija",null,"Int/Pot"]
[null,7,"Mestna občina Nova Gorica","Nova Gorica",null,null,7,"KOMUNALA SLOVENJ GRADEC, d.o.o.","KOMUNALA_SG","Pameče 177a","Slovenj Gradec",2380,"Pameče 177a, 2380 Slovenj Gradec","5072107000","KS",{"$f":"CONCATENATE($P$37,tab_BAZA_PS[[#This Row],[NAZIV_OS-S]])","v":"ZP_ODS-ZB_PR_UKR_20260519_103852-KOMUNALA_SG"},null,null,null,null,"UK_7","Predelava merilnih sistemov pretoka plinov v sistemu po prevzem plinov obnovljivega ali nefosilnega izvora ter vodika v sistem","Predelava merilnih sistemov pretoka plinov",null,1,"a.",null,"Zelo velik"]
[null,8,"Mestna občina Novo mesto","Novo mesto",null,null,8,"JP KPV, d.o.o.","JKP_VRHNIKA","Pot na Tojnice 40","Vrhnika",1360,"Pot na Tojnice 40, 1360 Vrhnika","5015707000","KV",{"$f":"CONCATENATE($P$37,tab_BAZA_PS[[#This Row],[NAZIV_OS-S]])","v":"ZP_ODS-ZB_PR_UKR_20260519_103852-JKP_VRHNIKA"},null,null,null,null,"UK_8","Vzpostavitev merilnih sistemov za meritve vsebnosti in koncentracij plinov pred prevzemom v plinski sistem","Vzpostavitev merilnih sistemov vsebnosti in koncentracij plinov",null,2,"b.",null,"Velik"]
[null,9,"Mestna občina Ptuj","Ptuj",null,null,9,"JEKO, d.o.o., Jesenice","JEKO","Cesta maršala Tita 51","Jesenice",4270,"Cesta maršala Tita 51, 4270 Jesenice","5926823000","JE",{"$f":"CONCATENATE($P$37,tab_BAZA_PS[[#This Row],[NAZIV_OS-S]])","v":"ZP_ODS-ZB_PR_UKR_20260519_103852-JEKO"},null,null,null,null,"UK_9","Tehnična priprava plina na prevzem v sistem, npr. zagotovitev zahtevanega tlaka in temperature","Tehnična priprava plina na prevzem",null,3,"c.",null,"Srednji"]
[null,10,"Mestna občina Slovenj Gradec","Slovenj Gradec",null,null,10,"KOMUNALNO PODJETJE VELENJE, d.o.o.","KP_VELENJE","Koroška cesta 37B","Velenje",3320,"Koroška cesta 37B, 3320 Velenje","5222109000","VE",{"$f":"CONCATENATE($P$37,tab_BAZA_PS[[#This Row],[NAZIV_OS-S]])","v":"ZP_ODS-ZB_PR_UKR_20260519_103852-KP_VELENJE"},null,null,null,null,"UK_10","Drugo (potreben opis)","Drugo (potreben opis)",null,4,"a., b.",null,"Majhen"]
[null,11,"Mestna občina Velenje","Velenje",null,null,11,"PETROL d.d., Ljubljana","PETROL","Dunajska cesta 50","Ljubljana",1000,"Dunajska cesta 50, 1000 Ljubljana","5025796000","PE",{"$f":"CONCATENATE($P$37,tab_BAZA_PS[[#This Row],[NAZIV_OS-S]])","v":"ZP_ODS-ZB_PR_UKR_20260519_103852-PETROL"},null,null,null,null,null,null,null,null,5,"a., c.",null,"Ne obstaja"]
[null,12,"Občina Ajdovščina","Ajdovščina",null,null,12,"PLINARNA MARIBOR d.o.o.","PLINARNA_MB","Plinarniška ulica 9","Maribor",2000,"Plinarniška ulica 9, 2000 Maribor","5034477000","PM",{"$f":"CONCATENATE($P$37,tab_BAZA_PS[[#This Row],[NAZIV_OS-S]])","v":"ZP_ODS-ZB_PR_UKR_20260519_103852-PLINARNA_MB"},null,null,null,null,null,null,null,null,6,"b., c."]
[null,13,"Občina Apače","Apače",null,null,13,"KOMUNALA d.o.o. Sevnica","KOMUNALA SEVNICA","Naselje heroja Maroka 17","Sevnica",8290,"Naselje heroja Maroka 17, 8290 Sevnica","5068088000","SE",{"$f":"CONCATENATE($P$37,tab_BAZA_PS[[#This Row],[NAZIV_OS-S]])","v":"ZP_ODS-ZB_PR_UKR_20260519_103852-KOMUNALA SEVNICA"},null,null,null,null,null,null,null,null,7,"a., b., c."]
[null,14,"Občina Beltinci","Beltinci",null,null,14,"PLINOVODI d.o.o.","PLINOVODI","Cesta Ljubljanske brigade 11B","Ljubljana",1000,"Cesta Ljubljanske brigade 11B, 1000 Ljubljana","1954288000","PV",{"$f":"CONCATENATE($P$37,tab_BAZA_PS[[#This Row],[NAZIV_OS-S]])","v":"ZP_ODS-ZB_PR_UKR_20260519_103852-PLINOVODI"}]
[null,15,"Občina Benedikt","Benedikt",null,null,15,"TEST d.o.o.","TEST","Testna ulica 1","Test",0,"Testna ulica 1, 0000 Test","1234567000","TE",{"$f":"CONCATENATE($P$37,tab_BAZA_PS[[#This Row],[NAZIV_OS-S]])","v":"ZP_ODS-ZB_PR_UKR_20260519_103852-TEST"}]
[null,16,"Občina Bistrica ob Sotli","Bistrica ob Sotli"]
[null,17,"Občina Bled","Bled"]
[null,18,"Občina Bloke","Bloke"]
[null,19,"Občina Bohinj","Bohinj"]
[null,20,"Občina Borovnica","Borovnica"]
[null,21,"Občina Bovec","Bovec"]
[null,22,"Občina Braslovče","Braslovče"]
[null,23,"Občina Brda","Brda"]
[null,24,"Občina Brezovica","Brezovica"]
[null,25,"Občina Brežice","Brežice"]
[null,26,"Občina Cankova","Cankova"]
[null,27,"Občina Cerklje na Gorenjskem","Cerklje na Gorenjskem"]
[null,28,"Občina Cerknica","Cerknica"]
[null,29,"Občina Cerkno","Cerkno"]
[null,30,"Občina Cerkvenjak","Cerkvenjak"]
[null,31,"Občina Cirkulane","Cirkulane",null,null,"Generator imen datoteke"]
[null,32,"Občina Črenšovci","Črenšovci",null,null,null,null,"ID datum","ID ura",null,null,"Vnesi začetno ime datoteke:   ",null,null,"ZP_ODS-ZB_PR_UKR"]
[null,33,"Občina Črna na Koroškem","Črna na Koroškem",null,null,null,null,{"$f":"TEXT(NOW(),\"yyyymmdd\")","v":"20260519"},{"$f":"TEXT(NOW(),\"hhmmss\")","v":"103852"}]
[null,34,"Občina Črnomelj","Črnomelj",null,null,null,null,null,null,null,null,"Predloga identifikatorja brez PS:   ",null,null,{"$f":"CONCATENATE($P$35,\"_\",$I$36,\"_\",$J$36,\"-\")","v":"ZP_ODS-ZB_PR_UKR_20260519_103852-"}]
[null,35,"Občina Destrnik","Destrnik"]
[null,36,"Občina Divača","Divača"]
[null,37,"Občina Dobje","Dobje"]
[null,38,"Občina Dobrepolje","Dobrepolje"]
[null,39,"Občina Dobrna","Dobrna"]
[null,40,"Občina Dobrova - Polhov Gradec","Dobrova - Polhov Gradec"]
[null,41,"Občina Dobrovnik","Dobrovnik"]
[null,42,"Občina Dol pri Ljubljani","Dol pri Ljubljani"]
[null,43,"Občina Dolenjske Toplice","Dolenjske Toplice"]
[null,44,"Občina Domžale","Domžale"]
[null,45,"Občina Dornava","Dornava"]
[null,46,"Občina Dravograd","Dravograd"]
[null,47,"Občina Duplek","Duplek"]
[null,48,"Občina Gorenja vas - Poljane","Gorenja vas - Poljane"]
[null,49,"Občina Gorišnica","Gorišnica"]
[null,50,"Občina Gorje","Gorje"]
[null,51,"Občina Gornja Radgona","Gornja Radgona"]
[null,52,"Občina Gornji Grad","Gornji Grad"]
[null,53,"Občina Gornji Petrovci","Gornji Petrovci"]
[null,54,"Občina Grad","Grad"]
[null,55,"Občina Grosuplje","Grosuplje"]
[null,56,"Občina Hajdina","Hajdina"]
[null,57,"Občina Hoče - Slivnica","Hoče - Slivnica"]
[null,58,"Občina Hodoš - Hodos község","Hodoš - Hodos község"]
[null,59,"Občina Horjul","Horjul"]
[null,60,"Občina Hrastnik","Hrastnik"]
[null,61,"Občina Hrpelje - Kozina","Hrpelje - Kozina"]
[null,62,"Občina Idrija","Idrija"]
[null,63,"Občina Ig","Ig"]
[null,64,"Občina Ilirska Bistrica","Ilirska Bistrica"]
[null,65,"Občina Ivančna Gorica","Ivančna Gorica"]
[null,66,"Občina Izola","Izola"]
[null,67,"Občina Jesenice","Jesenice"]
[null,68,"Občina Jezersko","Jezersko"]
[null,69,"Občina Juršinci","Juršinci"]
[null,70,"Občina Kamnik","Kamnik"]
[null,71,"Občina Kanal ob Soči","Kanal ob Soči"]
[null,72,"Občina Kidričevo","Kidričevo"]
[null,73,"Občina Kobarid","Kobarid"]
[null,74,"Občina Kobilje","Kobilje"]
[null,75,"Občina Kočevje","Kočevje"]
[null,76,"Občina Komen","Komen"]
[null,77,"Občina Komenda","Komenda"]
[null,78,"Občina Kostanjevica na Krki","Kostanjevica na Krki"]
[null,79,"Občina Kostel","Kostel"]
[null,80,"Občina Kozje","Kozje"]
[null,81,"Občina Kranjska Gora","Kranjska Gora"]
[null,82,"Občina Križevci","Križevci"]
[null,83,"Občina Krško","Krško"]
[null,84,"Občina Kungota","Kungota"]
[null,85,"Občina Kuzma","Kuzma"]
[null,86,"Občina Laško","Laško"]
[null,87,"Občina Lenart","Lenart"]
[null,88,"Občina Lendava","Lendava"]
[null,89,"Občina Litija","Litija"]
[null,90,"Občina Ljubno","Ljubno"]
[null,91,"Občina Ljutomer","Ljutomer"]
[null,92,"Občina Log - Dragomer","Log - Dragomer"]
[null,93,"Občina Logatec","Logatec"]
[null,94,"Občina Loška Dolina","Loška Dolina"]
[null,95,"Občina Loški Potok","Loški Potok"]
[null,96,"Občina Lovrenc na Pohorju","Lovrenc na Pohorju"]
[null,97,"Občina Luče","Luče"]
[null,98,"Občina Lukovica","Lukovica"]
[null,99,"Občina Majšperk","Majšperk"]
[null,100,"Občina Makole","Makole"]
[null,101,"Občina Markovci","Markovci"]
[null,102,"Občina Medvode","Medvode"]
[null,103,"Občina Mengeš","Mengeš"]
[null,104,"Občina Metlika","Metlika"]
[null,105,"Občina Mežica","Mežica"]
[null,106,"Občina Miklavž na Dravskem polju","Miklavž na Dravskem polju"]
[null,107,"Občina Miren - Kostanjevica","Miren - Kostanjevica"]
[null,108,"Občina Mirna Peč","Mirna Peč"]
[null,109,"Občina Mislinja","Mislinja"]
[null,110,"Občina Mokronog - Trebelno","Mokronog - Trebelno"]
[null,111,"Občina Moravče","Moravče"]
[null,112,"Občina Moravske Toplice","Moravske Toplice"]
[null,113,"Občina Mozirje","Mozirje"]
[null,114,"Občina Muta","Muta"]
[null,115,"Občina Naklo","Naklo"]
[null,116,"Občina Nazarje","Nazarje"]
[null,117,"Občina Odranci","Odranci"]
[null,118,"Občina Oplotnica","Oplotnica"]
[null,119,"Občina Ormož","Ormož"]
[null,120,"Občina Osilnica","Osilnica"]
[null,121,"Občina Pesnica","Pesnica"]
[null,122,"Občina Piran","Piran"]
[null,123,"Občina Pivka","Pivka"]
[null,124,"Občina Podčetrtek","Podčetrtek"]
[null,125,"Občina Podlehnik","Podlehnik"]
[null,126,"Občina Podvelka","Podvelka"]
[null,127,"Občina Poljčane","Poljčane"]
[null,128,"Občina Polzela","Polzela"]
[null,129,"Občina Postojna","Postojna"]
[null,130,"Občina Prebold","Prebold"]
[null,131,"Občina Preddvor","Preddvor"]
[null,132,"Občina Prevalje","Prevalje"]
[null,133,"Občina Puconci","Puconci"]
[null,134,"Občina Rače - Fram","Rače - Fram"]
[null,135,"Občina Radeče","Radeče"]
[null,136,"Občina Radenci","Radenci"]
[null,137,"Občina Radlje ob Dravi","Radlje ob Dravi"]
[null,138,"Občina Radovljica","Radovljica"]
[null,139,"Občina Ravne na Koroškem","Ravne na Koroškem"]
[null,140,"Občina Razkrižje","Razkrižje"]
[null,141,"Občina Rečica Ob Savinji","Rečica Ob Savinji"]
[null,142,"Občina Renče - Vogrsko","Renče - Vogrsko"]
[null,143,"Občina Ribnica","Ribnica"]
[null,144,"Občina Ribnica na Pohorju","Ribnica na Pohorju"]
[null,145,"Občina Rogaška Slatina","Rogaška Slatina"]
[null,146,"Občina Rogašovci","Rogašovci"]
[null,147,"Občina Rogatec","Rogatec"]
[null,148,"Občina Ruše","Ruše"]
[null,149,"Občina Selnica ob Dravi","Selnica ob Dravi"]
[null,150,"Občina Semič","Semič"]
[null,151,"Občina Sevnica","Sevnica"]
[null,152,"Občina Sežana","Sežana"]
[null,153,"Občina Slovenska Bistrica","Slovenska Bistrica"]
[null,154,"Občina Slovenske Konjice","Slovenske Konjice"]
[null,155,"Občina Sodražica","Sodražica"]
[null,156,"Občina Solčava","Solčava"]
[null,157,"Občina Središče ob Dravi","Središče ob Dravi"]
[null,158,"Občina Starše","Starše"]
[null,159,"Občina Straža","Straža"]
[null,160,"Občina Sveta Ana","Sveta Ana"]
[null,161,"Občina Sveta Trojica v Slovenskih goricah","Sveta Trojica v Slovenskih goricah"]
[null,162,"Občina Sveti Andraž v Slovenskih goricah","Sveti Andraž v Slovenskih goricah"]
[null,163,"Občina Sveti Jurij ob Ščavnici","Sveti Jurij ob Ščavnici"]
[null,164,"Občina Sveti Jurij v Slovenskih Goricah","Sveti Jurij v Slovenskih Goricah"]
[null,165,"Občina Sveti Tomaž","Sveti Tomaž"]
[null,166,"Občina Šalovci","Šalovci"]
[null,167,"Občina Šempeter - Vrtojba","Šempeter - Vrtojba"]
[null,168,"Občina Šenčur","Šenčur"]
[null,169,"Občina Šentilj","Šentilj"]
[null,170,"Občina Šentjernej","Šentjernej"]
[null,171,"Občina Šentjur pri Celju","Šentjur pri Celju"]
[null,172,"Občina Šentrupert","Šentrupert"]
[null,173,"Občina Škocjan","Škocjan"]
[null,174,"Občina Škofja Loka","Škofja Loka"]
[null,175,"Občina Škofljica","Škofljica"]
[null,176,"Občina Šmarje pri Jelšah","Šmarje pri Jelšah"]
[null,177,"Občina Šmarješke Toplice","Šmarješke Toplice"]
[null,178,"Občina Šmartno ob Paki","Šmartno ob Paki"]
[null,179,"Občina Šmartno pri Litiji","Šmartno pri Litiji"]
[null,180,"Občina Šoštanj","Šoštanj"]
[null,181,"Občina Štore","Štore"]
[null,182,"Občina Tabor","Tabor"]
[null,183,"Občina Tišina","Tišina"]
[null,184,"Občina Tolmin","Tolmin"]
[null,185,"Občina Trbovlje","Trbovlje"]
[null,186,"Občina Trebnje","Trebnje"]
[null,187,"Občina Trnovska vas","Trnovska vas"]
[null,188,"Občina Trzin","Trzin"]
[null,189,"Občina Tržič","Tržič"]
[null,190,"Občina Turnišče","Turnišče"]
[null,191,"Občina Velika Polana","Velika Polana"]
[null,192,"Občina Velike Lašče","Velike Lašče"]
[null,193,"Občina Veržej","Veržej"]
[null,194,"Občina Videm","Videm"]
[null,195,"Občina Vipava","Vipava"]
[null,196,"Občina Vitanje","Vitanje"]
[null,197,"Občina Vodice","Vodice"]
[null,198,"Občina Vojnik","Vojnik"]
[null,199,"Občina Vransko","Vransko"]
[null,200,"Občina Vrhnika","Vrhnika"]
[null,201,"Občina Vuzenica","Vuzenica"]
[null,202,"Občina Zagorje ob Savi","Zagorje ob Savi"]
[null,203,"Občina Zavrč","Zavrč"]
[null,204,"Občina Zreče","Zreče"]
[null,205,"Občina Žalec","Žalec"]
[null,206,"Občina Železniki","Železniki"]
[null,207,"Občina Žetale","Žetale"]
[null,208,"Občina Žiri","Žiri"]
[null,209,"Občina Žirovnica","Žirovnica"]
[null,210,"Občina Žužemberk","Žužemberk"]
[null,211,"Občina Mirna","Mirna"]
[null,212,"Občina Ankaran","Ankaran"]

{"sheet":"VBA","index":1,"n_rows":16,"n_cols":9,"rows_kept":16,"cut":false,"hidden":true,"merged":[[1,3,1,6],[7,8,7,9],[15,3,15,6]]}
[]
[null,null,null,"Preverjanje listov"]
[null,null,null,"Osnovni podatki","Ukrepi casovnica","Ukrepi ucinki","Povezani podatki"]
[null,null,"Datum ustreza",null,{"$f":"IF(Ukrepi_casovnica!$V$11=0,0,1)","v":0}]
[null,null,"Uk9 ima opis",null,{"$f":"IF(Ukrepi_casovnica!$S$11=0,0,1)","v":0}]
[null,null,"Vse zahtevano",{"$f":"IF(Osnovni_podatki!$M$11=0,0,1)","v":1},{"$f":"IF(Ukrepi_casovnica!$T$11=0,0,1)","v":0},{"$f":"IF(Ukrepi_ucinki!$P$11=0,0,1)","v":0},{"$f":"IF(Povezani_podatki!$P$11=0,0,1)","v":0}]
[null,null,"Ponavljanje",null,{"$f":"IF(OR(Ukrepi_casovnica!$U$11=0,Ukrepi_casovnica!$U$11=1),0,1)","v":0}]
[null,null,null,{"$f":"SUM(D4:D7)","v":1},{"$f":"SUM(E4:E7)","v":0},0,0,{"$f":"SUM(D8:G8)","v":1},"<--- Mora biti 0"]
[]
[]
[null,null,"Verzija obrazca",{"$f":"VALUE(RIGHT(Osnovni_podatki!$G$4,2))","v":0}]
[null,null,null,{"$f":"D11*-1","v":0},"<--- To je vrednosti, ki mora biti nastavljena v aplikaciji za poročanje"]
[]
[null,null,"Končna kontrola"]
[null,null,"Število napak - verzija obrazca"]
[null,null,{"$f":"H8-D11","v":1},"<--- To je vrednost, ki se preverja v aplikaciji za poročanje"]

{"sheet":"NAVODILA","index":2,"n_rows":2,"n_cols":3,"rows_kept":2,"cut":false,"hidden":false,"merged":[[1,2,5,13]]}
[]
[null,null,"NA SPODNJI POVEZAVI JE DOSTOPNA PDF DATOTEKA Z NAVODILI ZA IZPOLNJEVANJE OBRAZCA (ODPIRANJE Z DVOKLIKOM NA IKONO)"]

{"sheet":"Osnovni_podatki","index":3,"n_rows":39,"n_cols":20,"rows_kept":39,"cut":false,"hidden":false,"merged":[[37,1,37,4],[34,2,34,3],[35,2,35,3],[29,4,29,5],[30,4,30,5],[31,4,31,5],[32,4,32,5],[34,4,34,5],[35,4,35,5],[32,2,32,3],[27,3,27,5],[26,3,26,5],[29,2,29,3],[30,2,30,3],[31,2,31,3],[25,3,25,5],[3,1,3,5],[4,1,4,5],[6,1,6,2],[10,3,10,4],[11,3,11,4],[14,1,14,5],[17,1,17,5],[21,1,21,3],[22,3,22,5],[23,3,23,5],[24,3,24,5],[9,2,9,5],[8,2,8,3]]}
[null,null,null,null,"Datum prejema:   "]
[]
[]
[null,"ZBIRNI PREGLED NAČRTOVANIH UKREPOV IN POVEZANIH PODATKOV",null,null,null,null,"25.00.00"]
[null,"(Struktura in vsebina zbirnega pregleda za posamezen ukrep za vsak sistem)",null,null,null,null,null,null,null,null,null,null,null,null,null,null,null,null,null,{"$f":"INDEX(tab_BAZA_PS[DATOTEKA],MATCH(Osnovni_podatki!$F$12,tab_BAZA_PS[Matična],0))","v":{"$error":"#N/A"}}]
[]
[null,"Zbirni pregled ukrepov začne veljati:",null,{"$f":"IF(ISBLANK($E$35),\"\",PROPER(TEXT($E$35,\"mmmm\")))","v":""},{"$f":"IF(ISBLANK($E$35),\"\",YEAR($E$35))","v":""}]
[]
[null,null,{"$f":"IF(ISNA(INDEX(tab_BAZA_PS[NAZIV_OPS-L],MATCH(Osnovni_podatki!$F$12,tab_BAZA_PS[Matična],0))),\"Preveri vnos matične številke\",\"\")","v":"Preveri vnos matične številke"}]
[null,{"$f":"IF(VBA!$H$8=0,\"\",\"Manjkajo podatki na listih: \")","v":"Manjkajo podatki na listih: "},{"$f":"IFERROR(LEFT(IF(VBA!$D$8=0,\"\",\"Osnovni_podatki, \")&IF(VBA!$E$8=0,\"\",\"Ukrepi_casovnica, \")&IF(VBA!$F$8=0,\"\",\"Ukrepi_ucinki, \")&IF(VBA!$G$8=0,\"\",\"Povezani_podatki, \"),LEN(IF(VBA!$D$8=0,\"\",\"Osnovni_podatki, \")&IF(VBA!$E$8=0,\"\",\"Ukrepi_casovnica, \")&IF(VBA!$F$8=0,\"\",\"Ukrepi_ucinki, \")&IF(VBA!$G$8=0,\"\",\"Povezani_podatki, \"))-2),\"\")","v":"Osnovni_podatki"},null,null,null,null,null,null,null,null,null,"Preverjamo zahtevane vnose (mora biti 0)",null,"Preverjanje za makro"]
[null,null,null,"EIC-X identifikator podjetja:     ",null,null,null,null,null,null,null,null,{"$f":"IF(OR(M12,M15,M18,M30,M31,M32,M33,M35,M36),1,0)","v":1},null,{"$f":"IF(OR(O12,O13),0,1)","v":0}]
[null,null,null,"Matična številka poslovnega subjekta:     ",null,null,null,null,null,null,null,null,{"$f":"ISBLANK(F12)","v":true},null,{"$f":"IF(O15=\"\",TRUE,FALSE)","v":true},"Je prazna"]
[null,"Poslovni subjekt:",null,null,null,null,null,null,null,null,null,null,null,null,{"$f":"IF(O15=\"PLINOVODI\",TRUE,FALSE)","v":false},"Je plinovodi"]
[]
[null,{"$f":"IFERROR(INDEX(BAZA_in_sifranti!$H$4:$H$18,MATCH(Osnovni_podatki!$F$12,BAZA_in_sifranti!$N$4:$N$18,0)),\"\")","v":""},null,null,null,null,null,null,null,null,null,null,{"$f":"ISBLANK(B15)","v":false},null,{"$f":"IFERROR(INDEX(tab_BAZA_PS[NAZIV_OS-S],MATCH(Osnovni_podatki!$F$12,tab_BAZA_PS[Matična],0)),\"\")","v":""}]
[]
[null,"Sedež:"]
[null,{"$f":"IFERROR(INDEX(BAZA_in_sifranti!$M$4:$M$18,MATCH(Osnovni_podatki!$F$12,BAZA_in_sifranti!$N$4:$N$18,0)),\"\")","v":""},null,null,null,null,null,null,null,null,null,null,{"$f":"ISBLANK(B18)","v":false}]
[]
[]
[]
[null,"Dostop do posameznih obrazcev poročanja:"]
[null,"   Obrazec","Oznaka tabele","   Naslov tabele"]
[null,"   Navodila","Tabela N","   Navodila za izpolnjevanje obrazca elektronskega poročanja"]
[null,"   Lokalne skupnosti","Tabela LS","   Lokalne skupnosti, v katerih se izvaja prenos ali distribucija plina"]
[null,"   Ukrepi časovnica","Tabela UČ","   Podatki o časovnem poteku načrtovanih ukrepov za prevzem plinov"]
[null,"   Ukrepi učinki","Tabela UU","   Podatki o učinkih načrtovanih ukrepov za prevzem plinov"]
[null,"   Povezani podatki","Tabela PP","   Povezani podatki"]
[]
[null,null,"Odgovorna oseba (ime in priimek):   ",null,"Primer Vzorec",null,null,null,null,null,null,null,{"$f":"ISBLANK(E30)","v":false}]
[null,null,"Odgovorna oseba za sestavljanje poročila (ime in priimek):   ",null,"Primer Vzorec",null,null,null,null,null,null,null,{"$f":"ISBLANK(E31)","v":false}]
[null,null,"Telefonska številka odgovorne osebe za sestavljanje poročila:   ",null,"000 001 001",null,null,null,null,null,null,null,false]
[null,null,"Elektronski naslov kontaktne osebe:   ",null,"vzorec.vzorec@vzorec.si",null,null,null,null,null,null,null,false]
[]
[null,null,"Datum:   ",null,null,null,null,null,null,null,null,null,{"$f":"ISBLANK(E35)","v":true}]
[null,null,"Kraj:   ",null,null,null,null,null,null,null,null,null,{"$f":"ISBLANK(E36)","v":true}]
[]
[null,"Povzetek:"]
[null,{"$f":"IF($F$12=BAZA_in_sifranti!$N$17,\"Odsek prenosnega plinovoda\",\"Lokalna skupnost\")","v":"Lokalna skupnost"},"Mesec in leto načrtovane končane prilagoditve prenosnega ali distribucijskega sistema na posameznem območju za prevzem plinov obnovljivega ali nefosilnega izvora ali vodika v sistem","Plin, ki ga bo plinski sistem sposoben prevzeti","Zmogljivost / dnevna količina obnovljivega ali nefosilnega plina ali vodika, ki ga je sistem sposoben prevzeti po izvedenem ukrepu [MWh/dan]"]

{"sheet":"Lokalne_skupnosti","index":4,"n_rows":55,"n_cols":8,"rows_kept":55,"cut":false,"hidden":false,"merged":[[55,6,55,7],[9,5,9,7],[8,5,8,6],[7,5,7,6],[9,2,9,4]]}
[]
[]
[]
[]
[]
[]
[]
[null,null,null,null,null,"Zbirni pregled ukrepov začne veljati:   ",null,{"$f":"CONCATENATE(Osnovni_podatki!$D$7,\" \",Osnovni_podatki!$E$7)","v":" "}]
[]
[null,"Tabela 1:","SKRITI STOLPCI",null,null,"Lokalne skupnosti izvajanja distribucije plina oziroma odseki prenosnega plinovoda"]
[null,"ID","Mat. štev. ODS","Leto","Mesec","ID_LS",{"$f":"IF(Osnovni_podatki!$F$12=BAZA_in_sifranti!$N$17,\"Oznaka odseka prenosnega plinovoda\",\"Naziv lokalne skupnosti (občine) v kateri se izvaja distribucija plina\")","v":"Naziv lokalne skupnosti (občine) v kateri se izvaja distribucija plina"},"Mesec in leto načrtovane končane prilagoditve prenosnega ali distribucijskega sistema na posameznem območju za prevzem plinov obnovljivega ali nefosilnega izvora ali vodika v sistem"]
[null,"ID","Mat.stev.ODS","Leto","Mesec","ID_LS","Lokalna skupnost","Leto_zaklj_prilag"]
[null,1,{"$f":"Osnovni_podatki!$F$12","v":0},{"$f":"Osnovni_podatki!$E$7","v":""},{"$f":"Osnovni_podatki!$D$7","v":""},{"$f":"IFERROR(INDEX(tab_BAZA_LS[ID_LS],MATCH(tab_Lokalne_skupnosti[[#This Row],[Lokalna skupnost]],tab_BAZA_LS[Naziv lokalne skupnosti],0)),\"\")","v":""},null,{"$f":"(IF(ISBLANK(tab_Lokalne_skupnosti[[#This Row],[Lokalna skupnost]]),\"\",IFERROR((IF(MAX(IF(tab_Ukrepi_casovnica[Lokalna_skupnost]=tab_Lokalne_skupnosti[[#This Row],[Lokalna skupnost]],tab_Ukrepi_casovnica[Nc_dt_akt_UKR]))=0,\"\",(MAX(IF(tab_Ukrepi_casovnica[Lokalna_skupnost]=tab_Lokalne_skupnosti[[#This Row],[Lokalna skupnost]],tab_Ukrepi_casovnica[Nc_dt_akt_UKR]))))),\"\")))","v":""}]
[null,2,{"$f":"Osnovni_podatki!$F$12","v":0},{"$f":"Osnovni_podatki!$E$7","v":""},{"$f":"Osnovni_podatki!$D$7","v":""},{"$f":"IFERROR(INDEX(tab_BAZA_LS[ID_LS],MATCH(tab_Lokalne_skupnosti[[#This Row],[Lokalna skupnost]],tab_BAZA_LS[Naziv lokalne skupnosti],0)),\"\")","v":""},null,{"$f":"(IF(ISBLANK(tab_Lokalne_skupnosti[[#This Row],[Lokalna skupnost]]),\"\",IFERROR((IF(MAX(IF(tab_Ukrepi_casovnica[Lokalna_skupnost]=tab_Lokalne_skupnosti[[#This Row],[Lokalna skupnost]],tab_Ukrepi_casovnica[Nc_dt_akt_UKR]))=0,\"\",(MAX(IF(tab_Ukrepi_casovnica[Lokalna_skupnost]=tab_Lokalne_skupnosti[[#This Row],[Lokalna skupnost]],tab_Ukrepi_casovnica[Nc_dt_akt_UKR]))))),\"\")))","v":""}]
[null,3,{"$f":"Osnovni_podatki!$F$12","v":0},{"$f":"Osnovni_podatki!$E$7","v":""},{"$f":"Osnovni_podatki!$D$7","v":""},{"$f":"IFERROR(INDEX(tab_BAZA_LS[ID_LS],MATCH(tab_Lokalne_skupnosti[[#This Row],[Lokalna skupnost]],tab_BAZA_LS[Naziv lokalne skupnosti],0)),\"\")","v":""},null,{"$f":"(IF(ISBLANK(tab_Lokalne_skupnosti[[#This Row],[Lokalna skupnost]]),\"\",IFERROR((IF(MAX(IF(tab_Ukrepi_casovnica[Lokalna_skupnost]=tab_Lokalne_skupnosti[[#This Row],[Lokalna skupnost]],tab_Ukrepi_casovnica[Nc_dt_akt_UKR]))=0,\"\",(MAX(IF(tab_Ukrepi_casovnica[Lokalna_skupnost]=tab_Lokalne_skupnosti[[#This Row],[Lokalna skupnost]],tab_Ukrepi_casovnica[Nc_dt_akt_UKR]))))),\"\")))","v":""}]
[null,4,{"$f":"Osnovni_podatki!$F$12","v":0},{"$f":"Osnovni_podatki!$E$7","v":""},{"$f":"Osnovni_podatki!$D$7","v":""},{"$f":"IFERROR(INDEX(tab_BAZA_LS[ID_LS],MATCH(tab_Lokalne_skupnosti[[#This Row],[Lokalna skupnost]],tab_BAZA_LS[Naziv lokalne skupnosti],0)),\"\")","v":""},null,{"$f":"(IF(ISBLANK(tab_Lokalne_skupnosti[[#This Row],[Lokalna skupnost]]),\"\",IFERROR((IF(MAX(IF(tab_Ukrepi_casovnica[Lokalna_skupnost]=tab_Lokalne_skupnosti[[#This Row],[Lokalna skupnost]],tab_Ukrepi_casovnica[Nc_dt_akt_UKR]))=0,\"\",(MAX(IF(tab_Ukrepi_casovnica[Lokalna_skupnost]=tab_Lokalne_skupnosti[[#This Row],[Lokalna skupnost]],tab_Ukrepi_casovnica[Nc_dt_akt_UKR]))))),\"\")))","v":""}]
[null,5,{"$f":"Osnovni_podatki!$F$12","v":0},{"$f":"Osnovni_podatki!$E$7","v":""},{"$f":"Osnovni_podatki!$D$7","v":""},{"$f":"IFERROR(INDEX(tab_BAZA_LS[ID_LS],MATCH(tab_Lokalne_skupnosti[[#This Row],[Lokalna skupnost]],tab_BAZA_LS[Naziv lokalne skupnosti],0)),\"\")","v":""},null,{"$f":"(IF(ISBLANK(tab_Lokalne_skupnosti[[#This Row],[Lokalna skupnost]]),\"\",IFERROR((IF(MAX(IF(tab_Ukrepi_casovnica[Lokalna_skupnost]=tab_Lokalne_skupnosti[[#This Row],[Lokalna skupnost]],tab_Ukrepi_casovnica[Nc_dt_akt_UKR]))=0,\"\",(MAX(IF(tab_Ukrepi_casovnica[Lokalna_skupnost]=tab_Lokalne_skupnosti[[#This Row],[Lokalna skupnost]],tab_Ukrepi_casovnica[Nc_dt_akt_UKR]))))),\"\")))","v":""}]
[null,6,{"$f":"Osnovni_podatki!$F$12","v":0},{"$f":"Osnovni_podatki!$E$7","v":""},{"$f":"Osnovni_podatki!$D$7","v":""},{"$f":"IFERROR(INDEX(tab_BAZA_LS[ID_LS],MATCH(tab_Lokalne_skupnosti[[#This Row],[Lokalna skupnost]],tab_BAZA_LS[Naziv lokalne skupnosti],0)),\"\")","v":""},null,{"$f":"(IF(ISBLANK(tab_Lokalne_skupnosti[[#This Row],[Lokalna skupnost]]),\"\",IFERROR((IF(MAX(IF(tab_Ukrepi_casovnica[Lokalna_skupnost]=tab_Lokalne_skupnosti[[#This Row],[Lokalna skupnost]],tab_Ukrepi_casovnica[Nc_dt_akt_UKR]))=0,\"\",(MAX(IF(tab_Ukrepi_casovnica[Lokalna_skupnost]=tab_Lokalne_skupnosti[[#This Row],[Lokalna skupnost]],tab_Ukrepi_casovnica[Nc_dt_akt_UKR]))))),\"\")))","v":""}]
[null,7,{"$f":"Osnovni_podatki!$F$12","v":0},{"$f":"Osnovni_podatki!$E$7","v":""},{"$f":"Osnovni_podatki!$D$7","v":""},{"$f":"IFERROR(INDEX(tab_BAZA_LS[ID_LS],MATCH(tab_Lokalne_skupnosti[[#This Row],[Lokalna skupnost]],tab_BAZA_LS[Naziv lokalne skupnosti],0)),\"\")","v":""},null,{"$f":"(IF(ISBLANK(tab_Lokalne_skupnosti[[#This Row],[Lokalna skupnost]]),\"\",IFERROR((IF(MAX(IF(tab_Ukrepi_casovnica[Lokalna_skupnost]=tab_Lokalne_skupnosti[[#This Row],[Lokalna skupnost]],tab_Ukrepi_casovnica[Nc_dt_akt_UKR]))=0,\"\",(MAX(IF(tab_Ukrepi_casovnica[Lokalna_skupnost]=tab_Lokalne_skupnosti[[#This Row],[Lokalna skupnost]],tab_Ukrepi_casovnica[Nc_dt_akt_UKR]))))),\"\")))","v":""}]
[null,8,{"$f":"Osnovni_podatki!$F$12","v":0},{"$f":"Osnovni_podatki!$E$7","v":""},{"$f":"Osnovni_podatki!$D$7","v":""},{"$f":"IFERROR(INDEX(tab_BAZA_LS[ID_LS],MATCH(tab_Lokalne_skupnosti[[#This Row],[Lokalna skupnost]],tab_BAZA_LS[Naziv lokalne skupnosti],0)),\"\")","v":""},null,{"$f":"(IF(ISBLANK(tab_Lokalne_skupnosti[[#This Row],[Lokalna skupnost]]),\"\",IFERROR((IF(MAX(IF(tab_Ukrepi_casovnica[Lokalna_skupnost]=tab_Lokalne_skupnosti[[#This Row],[Lokalna skupnost]],tab_Ukrepi_casovnica[Nc_dt_akt_UKR]))=0,\"\",(MAX(IF(tab_Ukrepi_casovnica[Lokalna_skupnost]=tab_Lokalne_skupnosti[[#This Row],[Lokalna skupnost]],tab_Ukrepi_casovnica[Nc_dt_akt_UKR]))))),\"\")))","v":""}]
[null,9,{"$f":"Osnovni_podatki!$F$12","v":0},{"$f":"Osnovni_podatki!$E$7","v":""},{"$f":"Osnovni_podatki!$D$7","v":""},{"$f":"IFERROR(INDEX(tab_BAZA_LS[ID_LS],MATCH(tab_Lokalne_skupnosti[[#This Row],[Lokalna skupnost]],tab_BAZA_LS[Naziv lokalne skupnosti],0)),\"\")","v":""},null,{"$f":"(IF(ISBLANK(tab_Lokalne_skupnosti[[#This Row],[Lokalna skupnost]]),\"\",IFERROR((IF(MAX(IF(tab_Ukrepi_casovnica[Lokalna_skupnost]=tab_Lokalne_skupnosti[[#This Row],[Lokalna skupnost]],tab_Ukrepi_casovnica[Nc_dt_akt_UKR]))=0,\"\",(MAX(IF(tab_Ukrepi_casovnica[Lokalna_skupnost]=tab_Lokalne_skupnosti[[#This Row],[Lokalna skupnost]],tab_Ukrepi_casovnica[Nc_dt_akt_UKR]))))),\"\")))","v":""}]
[null,10,{"$f":"Osnovni_podatki!$F$12","v":0},{"$f":"Osnovni_podatki!$E$7","v":""},{"$f":"Osnovni_podatki!$D$7","v":""},{"$f":"IFERROR(INDEX(tab_BAZA_LS[ID_LS],MATCH(tab_Lokalne_skupnosti[[#This Row],[Lokalna skupnost]],tab_BAZA_LS[Naziv lokalne skupnosti],0)),\"\")","v":""},null,{"$f":"(IF(ISBLANK(tab_Lokalne_skupnosti[[#This Row],[Lokalna skupnost]]),\"\",IFERROR((IF(MAX(IF(tab_Ukrepi_casovnica[Lokalna_skupnost]=tab_Lokalne_skupnosti[[#This Row],[Lokalna skupnost]],tab_Ukrepi_casovnica[Nc_dt_akt_UKR]))=0,\"\",(MAX(IF(tab_Ukrepi_casovnica[Lokalna_skupnost]=tab_Lokalne_skupnosti[[#This Row],[Lokalna skupnost]],tab_Ukrepi_casovnica[Nc_dt_akt_UKR]))))),\"\")))","v":""}]
[null,11,{"$f":"Osnovni_podatki!$F$12","v":0},{"$f":"Osnovni_podatki!$E$7","v":""},{"$f":"Osnovni_podatki!$D$7","v":""},{"$f":"IFERROR(INDEX(tab_BAZA_LS[ID_LS],MATCH(tab_Lokalne_skupnosti[[#This Row],[Lokalna skupnost]],tab_BAZA_LS[Naziv lokalne skupnosti],0)),\"\")","v":""},null,{"$f":"(IF(ISBLANK(tab_Lokalne_skupnosti[[#This Row],[Lokalna skupnost]]),\"\",IFERROR((IF(MAX(IF(tab_Ukrepi_casovnica[Lokalna_skupnost]=tab_Lokalne_skupnosti[[#This Row],[Lokalna skupnost]],tab_Ukrepi_casovnica[Nc_dt_akt_UKR]))=0,\"\",(MAX(IF(tab_Ukrepi_casovnica[Lokalna_skupnost]=tab_Lokalne_skupnosti[[#This Row],[Lokalna skupnost]],tab_Ukrepi_casovnica[Nc_dt_akt_UKR]))))),\"\")))","v":""}]
[null,12,{"$f":"Osnovni_podatki!$F$12","v":0},{"$f":"Osnovni_podatki!$E$7","v":""},{"$f":"Osnovni_podatki!$D$7","v":""},{"$f":"IFERROR(INDEX(tab_BAZA_LS[ID_LS],MATCH(tab_Lokalne_skupnosti[[#This Row],[Lokalna skupnost]],tab_BAZA_LS[Naziv lokalne skupnosti],0)),\"\")","v":""},null,{"$f":"(IF(ISBLANK(tab_Lokalne_skupnosti[[#This Row],[Lokalna skupnost]]),\"\",IFERROR((IF(MAX(IF(tab_Ukrepi_casovnica[Lokalna_skupnost]=tab_Lokalne_skupnosti[[#This Row],[Lokalna skupnost]],tab_Ukrepi_casovnica[Nc_dt_akt_UKR]))=0,\"\",(MAX(IF(tab_Ukrepi_casovnica[Lokalna_skupnost]=tab_Lokalne_skupnosti[[#This Row],[Lokalna skupnost]],tab_Ukrepi_casovnica[Nc_dt_akt_UKR]))))),\"\")))","v":""}]
[null,13,{"$f":"Osnovni_podatki!$F$12","v":0},{"$f":"Osnovni_podatki!$E$7","v":""},{"$f":"Osnovni_podatki!$D$7","v":""},{"$f":"IFERROR(INDEX(tab_BAZA_LS[ID_LS],MATCH(tab_Lokalne_skupnosti[[#This Row],[Lokalna skupnost]],tab_BAZA_LS[Naziv lokalne skupnosti],0)),\"\")","v":""},null,{"$f":"(IF(ISBLANK(tab_Lokalne_skupnosti[[#This Row],[Lokalna skupnost]]),\"\",IFERROR((IF(MAX(IF(tab_Ukrepi_casovnica[Lokalna_skupnost]=tab_Lokalne_skupnosti[[#This Row],[Lokalna skupnost]],tab_Ukrepi_casovnica[Nc_dt_akt_UKR]))=0,\"\",(MAX(IF(tab_Ukrepi_casovnica[Lokalna_skupnost]=tab_Lokalne_skupnosti[[#This Row],[Lokalna skupnost]],tab_Ukrepi_casovnica[Nc_dt_akt_UKR]))))),\"\")))","v":""}]
[null,14,{"$f":"Osnovni_podatki!$F$12","v":0},{"$f":"Osnovni_podatki!$E$7","v":""},{"$f":"Osnovni_podatki!$D$7","v":""},{"$f":"IFERROR(INDEX(tab_BAZA_LS[ID_LS],MATCH(tab_Lokalne_skupnosti[[#This Row],[Lokalna skupnost]],tab_BAZA_LS[Naziv lokalne skupnosti],0)),\"\")","v":""},null,{"$f":"(IF(ISBLANK(tab_Lokalne_skupnosti[[#This Row],[Lokalna skupnost]]),\"\",IFERROR((IF(MAX(IF(tab_Ukrepi_casovnica[Lokalna_skupnost]=tab_Lokalne_skupnosti[[#This Row],[Lokalna skupnost]],tab_Ukrepi_casovnica[Nc_dt_akt_UKR]))=0,\"\",(MAX(IF(tab_Ukrepi_casovnica[Lokalna_skupnost]=tab_Lokalne_skupnosti[[#This Row],[Lokalna skupnost]],tab_Ukrepi_casovnica[Nc_dt_akt_UKR]))))),\"\")))","v":""}]
[null,15,{"$f":"Osnovni_podatki!$F$12","v":0},{"$f":"Osnovni_podatki!$E$7","v":""},{"$f":"Osnovni_podatki!$D$7","v":""},{"$f":"IFERROR(INDEX(tab_BAZA_LS[ID_LS],MATCH(tab_Lokalne_skupnosti[[#This Row],[Lokalna skupnost]],tab_BAZA_LS[Naziv lokalne skupnosti],0)),\"\")","v":""},null,{"$f":"(IF(ISBLANK(tab_Lokalne_skupnosti[[#This Row],[Lokalna skupnost]]),\"\",IFERROR((IF(MAX(IF(tab_Ukrepi_casovnica[Lokalna_skupnost]=tab_Lokalne_skupnosti[[#This Row],[Lokalna skupnost]],tab_Ukrepi_casovnica[Nc_dt_akt_UKR]))=0,\"\",(MAX(IF(tab_Ukrepi_casovnica[Lokalna_skupnost]=tab_Lokalne_skupnosti[[#This Row],[Lokalna skupnost]],tab_Ukrepi_casovnica[Nc_dt_akt_UKR]))))),\"\")))","v":""}]
[null,16,{"$f":"Osnovni_podatki!$F$12","v":0},{"$f":"Osnovni_podatki!$E$7","v":""},{"$f":"Osnovni_podatki!$D$7","v":""},{"$f":"IFERROR(INDEX(tab_BAZA_LS[ID_LS],MATCH(tab_Lokalne_skupnosti[[#This Row],[Lokalna skupnost]],tab_BAZA_LS[Naziv lokalne skupnosti],0)),\"\")","v":""},null,{"$f":"(IF(ISBLANK(tab_Lokalne_skupnosti[[#This Row],[Lokalna skupnost]]),\"\",IFERROR((IF(MAX(IF(tab_Ukrepi_casovnica[Lokalna_skupnost]=tab_Lokalne_skupnosti[[#This Row],[Lokalna skupnost]],tab_Ukrepi_casovnica[Nc_dt_akt_UKR]))=0,\"\",(MAX(IF(tab_Ukrepi_casovnica[Lokalna_skupnost]=tab_Lokalne_skupnosti[[#This Row],[Lokalna skupnost]],tab_Ukrepi_casovnica[Nc_dt_akt_UKR]))))),\"\")))","v":""}]
[null,17,{"$f":"Osnovni_podatki!$F$12","v":0},{"$f":"Osnovni_podatki!$E$7","v":""},{"$f":"Osnovni_podatki!$D$7","v":""},{"$f":"IFERROR(INDEX(tab_BAZA_LS[ID_LS],MATCH(tab_Lokalne_skupnosti[[#This Row],[Lokalna skupnost]],tab_BAZA_LS[Naziv lokalne skupnosti],0)),\"\")","v":""},null,{"$f":"(IF(ISBLANK(tab_Lokalne_skupnosti[[#This Row],[Lokalna skupnost]]),\"\",IFERROR((IF(MAX(IF(tab_Ukrepi_casovnica[Lokalna_skupnost]=tab_Lokalne_skupnosti[[#This Row],[Lokalna skupnost]],tab_Ukrepi_casovnica[Nc_dt_akt_UKR]))=0,\"\",(MAX(IF(tab_Ukrepi_casovnica[Lokalna_skupnost]=tab_Lokalne_skupnosti[[#This Row],[Lokalna skupnost]],tab_Ukrepi_casovnica[Nc_dt_akt_UKR]))))),\"\")))","v":""}]
[null,18,{"$f":"Osnovni_podatki!$F$12","v":0},{"$f":"Osnovni_podatki!$E$7","v":""},{"$f":"Osnovni_podatki!$D$7","v":""},{"$f":"IFERROR(INDEX(tab_BAZA_LS[ID_LS],MATCH(tab_Lokalne_skupnosti[[#This Row],[Lokalna skupnost]],tab_BAZA_LS[Naziv lokalne skupnosti],0)),\"\")","v":""},null,{"$f":"(IF(ISBLANK(tab_Lokalne_skupnosti[[#This Row],[Lokalna skupnost]]),\"\",IFERROR((IF(MAX(IF(tab_Ukrepi_casovnica[Lokalna_skupnost]=tab_Lokalne_skupnosti[[#This Row],[Lokalna skupnost]],tab_Ukrepi_casovnica[Nc_dt_akt_UKR]))=0,\"\",(MAX(IF(tab_Ukrepi_casovnica[Lokalna_skupnost]=tab_Lokalne_skupnosti[[#This Row],[Lokalna skupnost]],tab_Ukrepi_casovnica[Nc_dt_akt_UKR]))))),\"\")))","v":""}]
[null,19,{"$f":"Osnovni_podatki!$F$12","v":0},{"$f":"Osnovni_podatki!$E$7","v":""},{"$f":"Osnovni_podatki!$D$7","v":""},{"$f":"IFERROR(INDEX(tab_BAZA_LS[ID_LS],MATCH(tab_Lokalne_skupnosti[[#This Row],[Lokalna skupnost]],tab_BAZA_LS[Naziv lokalne skupnosti],0)),\"\")","v":""},null,{"$f":"(IF(ISBLANK(tab_Lokalne_skupnosti[[#This Row],[Lokalna skupnost]]),\"\",IFERROR((IF(MAX(IF(tab_Ukrepi_casovnica[Lokalna_skupnost]=tab_Lokalne_skupnosti[[#This Row],[Lokalna skupnost]],tab_Ukrepi_casovnica[Nc_dt_akt_UKR]))=0,\"\",(MAX(IF(tab_Ukrepi_casovnica[Lokalna_skupnost]=tab_Lokalne_skupnosti[[#This Row],[Lokalna skupnost]],tab_Ukrepi_casovnica[Nc_dt_akt_UKR]))))),\"\")))","v":""}]
[null,20,{"$f":"Osnovni_podatki!$F$12","v":0},{"$f":"Osnovni_podatki!$E$7","v":""},{"$f":"Osnovni_podatki!$D$7","v":""},{"$f":"IFERROR(INDEX(tab_BAZA_LS[ID_LS],MATCH(tab_Lokalne_skupnosti[[#This Row],[Lokalna skupnost]],tab_BAZA_LS[Naziv lokalne skupnosti],0)),\"\")","v":""},null,{"$f":"(IF(ISBLANK(tab_Lokalne_skupnosti[[#This Row],[Lokalna skupnost]]),\"\",IFERROR((IF(MAX(IF(tab_Ukrepi_casovnica[Lokalna_skupnost]=tab_Lokalne_skupnosti[[#This Row],[Lokalna skupnost]],tab_Ukrepi_casovnica[Nc_dt_akt_UKR]))=0,\"\",(MAX(IF(tab_Ukrepi_casovnica[Lokalna_skupnost]=tab_Lokalne_skupnosti[[#This Row],[Lokalna skupnost]],tab_Ukrepi_casovnica[Nc_dt_akt_UKR]))))),\"\")))","v":""}]
[null,21,{"$f":"Osnovni_podatki!$F$12","v":0},{"$f":"Osnovni_podatki!$E$7","v":""},{"$f":"Osnovni_podatki!$D$7","v":""},{"$f":"IFERROR(INDEX(tab_BAZA_LS[ID_LS],MATCH(tab_Lokalne_skupnosti[[#This Row],[Lokalna skupnost]],tab_BAZA_LS[Naziv lokalne skupnosti],0)),\"\")","v":""},null,{"$f":"(IF(ISBLANK(tab_Lokalne_skupnosti[[#This Row],[Lokalna skupnost]]),\"\",IFERROR((IF(MAX(IF(tab_Ukrepi_casovnica[Lokalna_skupnost]=tab_Lokalne_skupnosti[[#This Row],[Lokalna skupnost]],tab_Ukrepi_casovnica[Nc_dt_akt_UKR]))=0,\"\",(MAX(IF(tab_Ukrepi_casovnica[Lokalna_skupnost]=tab_Lokalne_skupnosti[[#This Row],[Lokalna skupnost]],tab_Ukrepi_casovnica[Nc_dt_akt_UKR]))))),\"\")))","v":""}]
[null,22,{"$f":"Osnovni_podatki!$F$12","v":0},{"$f":"Osnovni_podatki!$E$7","v":""},{"$f":"Osnovni_podatki!$D$7","v":""},{"$f":"IFERROR(INDEX(tab_BAZA_LS[ID_LS],MATCH(tab_Lokalne_skupnosti[[#This Row],[Lokalna skupnost]],tab_BAZA_LS[Naziv lokalne skupnosti],0)),\"\")","v":""},null,{"$f":"(IF(ISBLANK(tab_Lokalne_skupnosti[[#This Row],[Lokalna skupnost]]),\"\",IFERROR((IF(MAX(IF(tab_Ukrepi_casovnica[Lokalna_skupnost]=tab_Lokalne_skupnosti[[#This Row],[Lokalna skupnost]],tab_Ukrepi_casovnica[Nc_dt_akt_UKR]))=0,\"\",(MAX(IF(tab_Ukrepi_casovnica[Lokalna_skupnost]=tab_Lokalne_skupnosti[[#This Row],[Lokalna skupnost]],tab_Ukrepi_casovnica[Nc_dt_akt_UKR]))))),\"\")))","v":""}]
[null,23,{"$f":"Osnovni_podatki!$F$12","v":0},{"$f":"Osnovni_podatki!$E$7","v":""},{"$f":"Osnovni_podatki!$D$7","v":""},{"$f":"IFERROR(INDEX(tab_BAZA_LS[ID_LS],MATCH(tab_Lokalne_skupnosti[[#This Row],[Lokalna skupnost]],tab_BAZA_LS[Naziv lokalne skupnosti],0)),\"\")","v":""},null,{"$f":"(IF(ISBLANK(tab_Lokalne_skupnosti[[#This Row],[Lokalna skupnost]]),\"\",IFERROR((IF(MAX(IF(tab_Ukrepi_casovnica[Lokalna_skupnost]=tab_Lokalne_skupnosti[[#This Row],[Lokalna skupnost]],tab_Ukrepi_casovnica[Nc_dt_akt_UKR]))=0,\"\",(MAX(IF(tab_Ukrepi_casovnica[Lokalna_skupnost]=tab_Lokalne_skupnosti[[#This Row],[Lokalna skupnost]],tab_Ukrepi_casovnica[Nc_dt_akt_UKR]))))),\"\")))","v":""}]
[null,24,{"$f":"Osnovni_podatki!$F$12","v":0},{"$f":"Osnovni_podatki!$E$7","v":""},{"$f":"Osnovni_podatki!$D$7","v":""},{"$f":"IFERROR(INDEX(tab_BAZA_LS[ID_LS],MATCH(tab_Lokalne_skupnosti[[#This Row],[Lokalna skupnost]],tab_BAZA_LS[Naziv lokalne skupnosti],0)),\"\")","v":""},null,{"$f":"(IF(ISBLANK(tab_Lokalne_skupnosti[[#This Row],[Lokalna skupnost]]),\"\",IFERROR((IF(MAX(IF(tab_Ukrepi_casovnica[Lokalna_skupnost]=tab_Lokalne_skupnosti[[#This Row],[Lokalna skupnost]],tab_Ukrepi_casovnica[Nc_dt_akt_UKR]))=0,\"\",(MAX(IF(tab_Ukrepi_casovnica[Lokalna_skupnost]=tab_Lokalne_skupnosti[[#This Row],[Lokalna skupnost]],tab_Ukrepi_casovnica[Nc_dt_akt_UKR]))))),\"\")))","v":""}]
[null,25,{"$f":"Osnovni_podatki!$F$12","v":0},{"$f":"Osnovni_podatki!$E$7","v":""},{"$f":"Osnovni_podatki!$D$7","v":""},{"$f":"IFERROR(INDEX(tab_BAZA_LS[ID_LS],MATCH(tab_Lokalne_skupnosti[[#This Row],[Lokalna skupnost]],tab_BAZA_LS[Naziv lokalne skupnosti],0)),\"\")","v":""},null,{"$f":"(IF(ISBLANK(tab_Lokalne_skupnosti[[#This Row],[Lokalna skupnost]]),\"\",IFERROR((IF(MAX(IF(tab_Ukrepi_casovnica[Lokalna_skupnost]=tab_Lokalne_skupnosti[[#This Row],[Lokalna skupnost]],tab_Ukrepi_casovnica[Nc_dt_akt_UKR]))=0,\"\",(MAX(IF(tab_Ukrepi_casovnica[Lokalna_skupnost]=tab_Lokalne_skupnosti[[#This Row],[Lokalna skupnost]],tab_Ukrepi_casovnica[Nc_dt_akt_UKR]))))),\"\")))","v":""}]
[null,26,{"$f":"Osnovni_podatki!$F$12","v":0},{"$f":"Osnovni_podatki!$E$7","v":""},{"$f":"Osnovni_podatki!$D$7","v":""},{"$f":"IFERROR(INDEX(tab_BAZA_LS[ID_LS],MATCH(tab_Lokalne_skupnosti[[#This Row],[Lokalna skupnost]],tab_BAZA_LS[Naziv lokalne skupnosti],0)),\"\")","v":""},null,{"$f":"(IF(ISBLANK(tab_Lokalne_skupnosti[[#This Row],[Lokalna skupnost]]),\"\",IFERROR((IF(MAX(IF(tab_Ukrepi_casovnica[Lokalna_skupnost]=tab_Lokalne_skupnosti[[#This Row],[Lokalna skupnost]],tab_Ukrepi_casovnica[Nc_dt_akt_UKR]))=0,\"\",(MAX(IF(tab_Ukrepi_casovnica[Lokalna_skupnost]=tab_Lokalne_skupnosti[[#This Row],[Lokalna skupnost]],tab_Ukrepi_casovnica[Nc_dt_akt_UKR]))))),\"\")))","v":""}]
[null,27,{"$f":"Osnovni_podatki!$F$12","v":0},{"$f":"Osnovni_podatki!$E$7","v":""},{"$f":"Osnovni_podatki!$D$7","v":""},{"$f":"IFERROR(INDEX(tab_BAZA_LS[ID_LS],MATCH(tab_Lokalne_skupnosti[[#This Row],[Lokalna skupnost]],tab_BAZA_LS[Naziv lokalne skupnosti],0)),\"\")","v":""},null,{"$f":"(IF(ISBLANK(tab_Lokalne_skupnosti[[#This Row],[Lokalna skupnost]]),\"\",IFERROR((IF(MAX(IF(tab_Ukrepi_casovnica[Lokalna_skupnost]=tab_Lokalne_skupnosti[[#This Row],[Lokalna skupnost]],tab_Ukrepi_casovnica[Nc_dt_akt_UKR]))=0,\"\",(MAX(IF(tab_Ukrepi_casovnica[Lokalna_skupnost]=tab_Lokalne_skupnosti[[#This Row],[Lokalna skupnost]],tab_Ukrepi_casovnica[Nc_dt_akt_UKR]))))),\"\")))","v":""}]
[null,28,{"$f":"Osnovni_podatki!$F$12","v":0},{"$f":"Osnovni_podatki!$E$7","v":""},{"$f":"Osnovni_podatki!$D$7","v":""},{"$f":"IFERROR(INDEX(tab_BAZA_LS[ID_LS],MATCH(tab_Lokalne_skupnosti[[#This Row],[Lokalna skupnost]],tab_BAZA_LS[Naziv lokalne skupnosti],0)),\"\")","v":""},null,{"$f":"(IF(ISBLANK(tab_Lokalne_skupnosti[[#This Row],[Lokalna skupnost]]),\"\",IFERROR((IF(MAX(IF(tab_Ukrepi_casovnica[Lokalna_skupnost]=tab_Lokalne_skupnosti[[#This Row],[Lokalna skupnost]],tab_Ukrepi_casovnica[Nc_dt_akt_UKR]))=0,\"\",(MAX(IF(tab_Ukrepi_casovnica[Lokalna_skupnost]=tab_Lokalne_skupnosti[[#This Row],[Lokalna skupnost]],tab_Ukrepi_casovnica[Nc_dt_akt_UKR]))))),\"\")))","v":""}]
[null,29,{"$f":"Osnovni_podatki!$F$12","v":0},{"$f":"Osnovni_podatki!$E$7","v":""},{"$f":"Osnovni_podatki!$D$7","v":""},{"$f":"IFERROR(INDEX(tab_BAZA_LS[ID_LS],MATCH(tab_Lokalne_skupnosti[[#This Row],[Lokalna skupnost]],tab_BAZA_LS[Naziv lokalne skupnosti],0)),\"\")","v":""},null,{"$f":"(IF(ISBLANK(tab_Lokalne_skupnosti[[#This Row],[Lokalna skupnost]]),\"\",IFERROR((IF(MAX(IF(tab_Ukrepi_casovnica[Lokalna_skupnost]=tab_Lokalne_skupnosti[[#This Row],[Lokalna skupnost]],tab_Ukrepi_casovnica[Nc_dt_akt_UKR]))=0,\"\",(MAX(IF(tab_Ukrepi_casovnica[Lokalna_skupnost]=tab_Lokalne_skupnosti[[#This Row],[Lokalna skupnost]],tab_Ukrepi_casovnica[Nc_dt_akt_UKR]))))),\"\")))","v":""}]
[null,30,{"$f":"Osnovni_podatki!$F$12","v":0},{"$f":"Osnovni_podatki!$E$7","v":""},{"$f":"Osnovni_podatki!$D$7","v":""},{"$f":"IFERROR(INDEX(tab_BAZA_LS[ID_LS],MATCH(tab_Lokalne_skupnosti[[#This Row],[Lokalna skupnost]],tab_BAZA_LS[Naziv lokalne skupnosti],0)),\"\")","v":""},null,{"$f":"(IF(ISBLANK(tab_Lokalne_skupnosti[[#This Row],[Lokalna skupnost]]),\"\",IFERROR((IF(MAX(IF(tab_Ukrepi_casovnica[Lokalna_skupnost]=tab_Lokalne_skupnosti[[#This Row],[Lokalna skupnost]],tab_Ukrepi_casovnica[Nc_dt_akt_UKR]))=0,\"\",(MAX(IF(tab_Ukrepi_casovnica[Lokalna_skupnost]=tab_Lokalne_skupnosti[[#This Row],[Lokalna skupnost]],tab_Ukrepi_casovnica[Nc_dt_akt_UKR]))))),\"\")))","v":""}]
[null,31,{"$f":"Osnovni_podatki!$F$12","v":0},{"$f":"Osnovni_podatki!$E$7","v":""},{"$f":"Osnovni_podatki!$D$7","v":""},{"$f":"IFERROR(INDEX(tab_BAZA_LS[ID_LS],MATCH(tab_Lokalne_skupnosti[[#This Row],[Lokalna skupnost]],tab_BAZA_LS[Naziv lokalne skupnosti],0)),\"\")","v":""},null,{"$f":"(IF(ISBLANK(tab_Lokalne_skupnosti[[#This Row],[Lokalna skupnost]]),\"\",IFERROR((IF(MAX(IF(tab_Ukrepi_casovnica[Lokalna_skupnost]=tab_Lokalne_skupnosti[[#This Row],[Lokalna skupnost]],tab_Ukrepi_casovnica[Nc_dt_akt_UKR]))=0,\"\",(MAX(IF(tab_Ukrepi_casovnica[Lokalna_skupnost]=tab_Lokalne_skupnosti[[#This Row],[Lokalna skupnost]],tab_Ukrepi_casovnica[Nc_dt_akt_UKR]))))),\"\")))","v":""}]
[null,32,{"$f":"Osnovni_podatki!$F$12","v":0},{"$f":"Osnovni_podatki!$E$7","v":""},{"$f":"Osnovni_podatki!$D$7","v":""},{"$f":"IFERROR(INDEX(tab_BAZA_LS[ID_LS],MATCH(tab_Lokalne_skupnosti[[#This Row],[Lokalna skupnost]],tab_BAZA_LS[Naziv lokalne skupnosti],0)),\"\")","v":""},null,{"$f":"(IF(ISBLANK(tab_Lokalne_skupnosti[[#This Row],[Lokalna skupnost]]),\"\",IFERROR((IF(MAX(IF(tab_Ukrepi_casovnica[Lokalna_skupnost]=tab_Lokalne_skupnosti[[#This Row],[Lokalna skupnost]],tab_Ukrepi_casovnica[Nc_dt_akt_UKR]))=0,\"\",(MAX(IF(tab_Ukrepi_casovnica[Lokalna_skupnost]=tab_Lokalne_skupnosti[[#This Row],[Lokalna skupnost]],tab_Ukrepi_casovnica[Nc_dt_akt_UKR]))))),\"\")))","v":""}]
[null,33,{"$f":"Osnovni_podatki!$F$12","v":0},{"$f":"Osnovni_podatki!$E$7","v":""},{"$f":"Osnovni_podatki!$D$7","v":""},{"$f":"IFERROR(INDEX(tab_BAZA_LS[ID_LS],MATCH(tab_Lokalne_skupnosti[[#This Row],[Lokalna skupnost]],tab_BAZA_LS[Naziv lokalne skupnosti],0)),\"\")","v":""},null,{"$f":"(IF(ISBLANK(tab_Lokalne_skupnosti[[#This Row],[Lokalna skupnost]]),\"\",IFERROR((IF(MAX(IF(tab_Ukrepi_casovnica[Lokalna_skupnost]=tab_Lokalne_skupnosti[[#This Row],[Lokalna skupnost]],tab_Ukrepi_casovnica[Nc_dt_akt_UKR]))=0,\"\",(MAX(IF(tab_Ukrepi_casovnica[Lokalna_skupnost]=tab_Lokalne_skupnosti[[#This Row],[Lokalna skupnost]],tab_Ukrepi_casovnica[Nc_dt_akt_UKR]))))),\"\")))","v":""}]
[null,34,{"$f":"Osnovni_podatki!$F$12","v":0},{"$f":"Osnovni_podatki!$E$7","v":""},{"$f":"Osnovni_podatki!$D$7","v":""},{"$f":"IFERROR(INDEX(tab_BAZA_LS[ID_LS],MATCH(tab_Lokalne_skupnosti[[#This Row],[Lokalna skupnost]],tab_BAZA_LS[Naziv lokalne skupnosti],0)),\"\")","v":""},null,{"$f":"(IF(ISBLANK(tab_Lokalne_skupnosti[[#This Row],[Lokalna skupnost]]),\"\",IFERROR((IF(MAX(IF(tab_Ukrepi_casovnica[Lokalna_skupnost]=tab_Lokalne_skupnosti[[#This Row],[Lokalna skupnost]],tab_Ukrepi_casovnica[Nc_dt_akt_UKR]))=0,\"\",(MAX(IF(tab_Ukrepi_casovnica[Lokalna_skupnost]=tab_Lokalne_skupnosti[[#This Row],[Lokalna skupnost]],tab_Ukrepi_casovnica[Nc_dt_akt_UKR]))))),\"\")))","v":""}]
[null,35,{"$f":"Osnovni_podatki!$F$12","v":0},{"$f":"Osnovni_podatki!$E$7","v":""},{"$f":"Osnovni_podatki!$D$7","v":""},{"$f":"IFERROR(INDEX(tab_BAZA_LS[ID_LS],MATCH(tab_Lokalne_skupnosti[[#This Row],[Lokalna skupnost]],tab_BAZA_LS[Naziv lokalne skupnosti],0)),\"\")","v":""},null,{"$f":"(IF(ISBLANK(tab_Lokalne_skupnosti[[#This Row],[Lokalna skupnost]]),\"\",IFERROR((IF(MAX(IF(tab_Ukrepi_casovnica[Lokalna_skupnost]=tab_Lokalne_skupnosti[[#This Row],[Lokalna skupnost]],tab_Ukrepi_casovnica[Nc_dt_akt_UKR]))=0,\"\",(MAX(IF(tab_Ukrepi_casovnica[Lokalna_skupnost]=tab_Lokalne_skupnosti[[#This Row],[Lokalna skupnost]],tab_Ukrepi_casovnica[Nc_dt_akt_UKR]))))),\"\")))","v":""}]
[null,36,{"$f":"Osnovni_podatki!$F$12","v":0},{"$f":"Osnovni_podatki!$E$7","v":""},{"$f":"Osnovni_podatki!$D$7","v":""},{"$f":"IFERROR(INDEX(tab_BAZA_LS[ID_LS],MATCH(tab_Lokalne_skupnosti[[#This Row],[Lokalna skupnost]],tab_BAZA_LS[Naziv lokalne skupnosti],0)),\"\")","v":""},null,{"$f":"(IF(ISBLANK(tab_Lokalne_skupnosti[[#This Row],[Lokalna skupnost]]),\"\",IFERROR((IF(MAX(IF(tab_Ukrepi_casovnica[Lokalna_skupnost]=tab_Lokalne_skupnosti[[#This Row],[Lokalna skupnost]],tab_Ukrepi_casovnica[Nc_dt_akt_UKR]))=0,\"\",(MAX(IF(tab_Ukrepi_casovnica[Lokalna_skupnost]=tab_Lokalne_skupnosti[[#This Row],[Lokalna skupnost]],tab_Ukrepi_casovnica[Nc_dt_akt_UKR]))))),\"\")))","v":""}]
[null,37,{"$f":"Osnovni_podatki!$F$12","v":0},{"$f":"Osnovni_podatki!$E$7","v":""},{"$f":"Osnovni_podatki!$D$7","v":""},{"$f":"IFERROR(INDEX(tab_BAZA_LS[ID_LS],MATCH(tab_Lokalne_skupnosti[[#This Row],[Lokalna skupnost]],tab_BAZA_LS[Naziv lokalne skupnosti],0)),\"\")","v":""},null,{"$f":"(IF(ISBLANK(tab_Lokalne_skupnosti[[#This Row],[Lokalna skupnost]]),\"\",IFERROR((IF(MAX(IF(tab_Ukrepi_casovnica[Lokalna_skupnost]=tab_Lokalne_skupnosti[[#This Row],[Lokalna skupnost]],tab_Ukrepi_casovnica[Nc_dt_akt_UKR]))=0,\"\",(MAX(IF(tab_Ukrepi_casovnica[Lokalna_skupnost]=tab_Lokalne_skupnosti[[#This Row],[Lokalna skupnost]],tab_Ukrepi_casovnica[Nc_dt_akt_UKR]))))),\"\")))","v":""}]
[null,38,{"$f":"Osnovni_podatki!$F$12","v":0},{"$f":"Osnovni_podatki!$E$7","v":""},{"$f":"Osnovni_podatki!$D$7","v":""},{"$f":"IFERROR(INDEX(tab_BAZA_LS[ID_LS],MATCH(tab_Lokalne_skupnosti[[#This Row],[Lokalna skupnost]],tab_BAZA_LS[Naziv lokalne skupnosti],0)),\"\")","v":""},null,{"$f":"(IF(ISBLANK(tab_Lokalne_skupnosti[[#This Row],[Lokalna skupnost]]),\"\",IFERROR((IF(MAX(IF(tab_Ukrepi_casovnica[Lokalna_skupnost]=tab_Lokalne_skupnosti[[#This Row],[Lokalna skupnost]],tab_Ukrepi_casovnica[Nc_dt_akt_UKR]))=0,\"\",(MAX(IF(tab_Ukrepi_casovnica[Lokalna_skupnost]=tab_Lokalne_skupnosti[[#This Row],[Lokalna skupnost]],tab_Ukrepi_casovnica[Nc_dt_akt_UKR]))))),\"\")))","v":""}]
[null,39,{"$f":"Osnovni_podatki!$F$12","v":0},{"$f":"Osnovni_podatki!$E$7","v":""},{"$f":"Osnovni_podatki!$D$7","v":""},{"$f":"IFERROR(INDEX(tab_BAZA_LS[ID_LS],MATCH(tab_Lokalne_skupnosti[[#This Row],[Lokalna skupnost]],tab_BAZA_LS[Naziv lokalne skupnosti],0)),\"\")","v":""},null,{"$f":"(IF(ISBLANK(tab_Lokalne_skupnosti[[#This Row],[Lokalna skupnost]]),\"\",IFERROR((IF(MAX(IF(tab_Ukrepi_casovnica[Lokalna_skupnost]=tab_Lokalne_skupnosti[[#This Row],[Lokalna skupnost]],tab_Ukrepi_casovnica[Nc_dt_akt_UKR]))=0,\"\",(MAX(IF(tab_Ukrepi_casovnica[Lokalna_skupnost]=tab_Lokalne_skupnosti[[#This Row],[Lokalna skupnost]],tab_Ukrepi_casovnica[Nc_dt_akt_UKR]))))),\"\")))","v":""}]
[null,40,{"$f":"Osnovni_podatki!$F$12","v":0},{"$f":"Osnovni_podatki!$E$7","v":""},{"$f":"Osnovni_podatki!$D$7","v":""},{"$f":"IFERROR(INDEX(tab_BAZA_LS[ID_LS],MATCH(tab_Lokalne_skupnosti[[#This Row],[Lokalna skupnost]],tab_BAZA_LS[Naziv lokalne skupnosti],0)),\"\")","v":""},null,{"$f":"(IF(ISBLANK(tab_Lokalne_skupnosti[[#This Row],[Lokalna skupnost]]),\"\",IFERROR((IF(MAX(IF(tab_Ukrepi_casovnica[Lokalna_skupnost]=tab_Lokalne_skupnosti[[#This Row],[Lokalna skupnost]],tab_Ukrepi_casovnica[Nc_dt_akt_UKR]))=0,\"\",(MAX(IF(tab_Ukrepi_casovnica[Lokalna_skupnost]=tab_Lokalne_skupnosti[[#This Row],[Lokalna skupnost]],tab_Ukrepi_casovnica[Nc_dt_akt_UKR]))))),\"\")))","v":""}]
[]
[]
[null,null,null,null,null,null,"Komentar:"]

{"sheet":"Ukrepi_casovnica","index":5,"n_rows":119,"n_cols":22,"rows_kept":119,"cut":false,"hidden":false,"merged":[[119,5,119,14],[8,5,8,6],[6,5,6,6],[8,2,8,4]]}
[null,null,null,null,null,null,null,"Napake"]
[null,null,null,null,null,null,null,{"$f":"IF(U11>1,\"Pazi vnosi se ponavljajo\",\"\")","v":""}]
[null,null,null,null,null,null,null,{"$f":"IF(S11>0,\"UK_9 nujno potrebuje opis\",\"\")","v":""}]
[null,null,null,null,null,null,null,{"$f":"IF(T11>0,\"Niso izpolnjena vsa zahtevana polja\",\"\")","v":""}]
[null,null,null,null,null,null,null,{"$f":"IF(V11>0,\"Datum aktivacije ukrepa ne mora biti pred datumom začetka izvajanja ukrepa\",\"\")","v":""}]
[]
[null,null,null,null,null,"Zbirni pregled ukrepov začne veljati:   ",null,{"$f":"Lokalne_skupnosti!$H$8","v":" "}]
[]
[null,"Tabela 2:","SKRITI STOLPCI",null,null,"Podatki o načrtovanih ukrepih"]
[null,"ID","Mat. štev. ODS","Leto","Mesec","ID_LS",{"$f":"IF(Osnovni_podatki!$F$12=BAZA_in_sifranti!$N$17,\"Odsek prenosnega plinovoda\",\"Lokalna skupnost\")","v":"Lokalna skupnost"},"Plin za prevzem v sistem  ","Ukrep","Identifikacijska oznaka načrtovanega ukrepa","Kratek opis načrtovanega ukrepa","Predviden datum začetka izvajanja ukrepa","Predviden datum zaključka izvajanja ukrepa (aktivacija ukrepa)","Načrtovan investicijski strošek izvedbe ukrepa (EUR, brez DDV)","Načrtovan vir financiranja ukrepa",null,null,null,"Preverjamo če je pri ukrepu 9 podan opis (mora biti 0)","Preverjamo če so vsi zahtevani vnosi vneseni (mora biti 0)","Preverjamo ponavljanje (največ 1)","Preverjamo, da aktivacija ni pred začetkom izvajanja"]
[null,"ID","Mat.stev.ODS","Leto","Mesec","ID_LS","Lokalna_skupnost","Ime_plin","ID_UKR","Op_nc_UKR","Kratek_opis","Dt_odl_UKR","Nc_dt_akt_UKR","Nc_inv_str_UKR","Nc_vir_fin",null,null,null,{"$f":"COUNTIF(S12:INDEX(S:S,MAX(ROW(tab_Ukrepi_casovnica[]))),0)","v":0},{"$f":"COUNTIF(T12:INDEX(T:T,MAX(ROW(tab_Ukrepi_casovnica[]))),0)","v":0},{"$f":"MAX(IF(U12:INDEX(U:U,MAX(ROW(tab_Ukrepi_casovnica[])))<>\"\",COUNTIF(U12:INDEX(U:U,MAX(ROW(tab_Ukrepi_casovnica[]))),U12:INDEX(U:U,MAX(ROW(tab_Ukrepi_casovnica[])))),0))","v":0},{"$f":"COUNTIF(V12:INDEX(V:V,MAX(ROW(tab_Ukrepi_casovnica[]))),1)","v":0}]
[null,1,{"$f":"Osnovni_podatki!$F$12","v":0},{"$f":"Osnovni_podatki!$E$7","v":""},{"$f":"Osnovni_podatki!$D$7","v":""},{"$f":"IFERROR(INDEX(tab_BAZA_LS[ID_LS],MATCH(tab_Ukrepi_casovnica[[#This Row],[Lokalna_skupnost]],tab_BAZA_LS[Naziv lokalne skupnosti],0)),\"\")","v":""},null,null,null,{"$f":"IFERROR(INDEX(tab_BAZA_Ukrepi[ID_UKR],MATCH(tab_Ukrepi_casovnica[[#This Row],[ID_UKR]],tab_BAZA_Ukrepi[Kratek opis],0)),\"\")","v":""},null,null,null,null,null,null,null,null,{"$f":"IF(AND(J12=\"UK_9\",K12=\"\"),0,1)","v":1},{"$f":"IF(AND(ISBLANK(G12),ISBLANK(H12),ISBLANK(I12),ISBLANK(L12),ISBLANK(M12),ISBLANK(N12),ISBLANK(O12)),1,IF(OR(ISBLANK(G12),ISBLANK(H12),ISBLANK(I12),ISBLANK(L12),ISBLANK(M12),ISBLANK(N12),ISBLANK(O12)),0,1))","v":1},{"$f":"G12&H12&I12","v":""},{"$f":"IF((M12-L12)<0,1,0)","v":0}]
[null,2,{"$f":"Osnovni_podatki!$F$12","v":0},{"$f":"Osnovni_podatki!$E$7","v":""},{"$f":"Osnovni_podatki!$D$7","v":""},{"$f":"IFERROR(INDEX(tab_BAZA_LS[ID_LS],MATCH(tab_Ukrepi_casovnica[[#This Row],[Lokalna_skupnost]],tab_BAZA_LS[Naziv lokalne skupnosti],0)),\"\")","v":""},null,null,null,{"$f":"IFERROR(INDEX(tab_BAZA_Ukrepi[ID_UKR],MATCH(tab_Ukrepi_casovnica[[#This Row],[ID_UKR]],tab_BAZA_Ukrepi[Kratek opis],0)),\"\")","v":""},null,null,null,null,null,null,null,null,{"$f":"IF(AND(J13=\"UK_9\",K13=\"\"),0,1)","v":1},1,"",{"$f":"IF((M13-L13)<0,1,0)","v":0}]
[null,3,{"$f":"Osnovni_podatki!$F$12","v":0},{"$f":"Osnovni_podatki!$E$7","v":""},{"$f":"Osnovni_podatki!$D$7","v":""},{"$f":"IFERROR(INDEX(tab_BAZA_LS[ID_LS],MATCH(tab_Ukrepi_casovnica[[#This Row],[Lokalna_skupnost]],tab_BAZA_LS[Naziv lokalne skupnosti],0)),\"\")","v":""},null,null,null,{"$f":"IFERROR(INDEX(tab_BAZA_Ukrepi[ID_UKR],MATCH(tab_Ukrepi_casovnica[[#This Row],[ID_UKR]],tab_BAZA_Ukrepi[Kratek opis],0)),\"\")","v":""},null,null,null,null,null,null,null,null,1,1,"",0]
[null,4,{"$f":"Osnovni_podatki!$F$12","v":0},{"$f":"Osnovni_podatki!$E$7","v":""},{"$f":"Osnovni_podatki!$D$7","v":""},{"$f":"IFERROR(INDEX(tab_BAZA_LS[ID_LS],MATCH(tab_Ukrepi_casovnica[[#This Row],[Lokalna_skupnost]],tab_BAZA_LS[Naziv lokalne skupnosti],0)),\"\")","v":""},null,null,null,{"$f":"IFERROR(INDEX(tab_BAZA_Ukrepi[ID_UKR],MATCH(tab_Ukrepi_casovnica[[#This Row],[ID_UKR]],tab_BAZA_Ukrepi[Kratek opis],0)),\"\")","v":""},null,null,null,null,null,null,null,null,1,1,"",0]
[null,5,{"$f":"Osnovni_podatki!$F$12","v":0},{"$f":"Osnovni_podatki!$E$7","v":""},{"$f":"Osnovni_podatki!$D$7","v":""},{"$f":"IFERROR(INDEX(tab_BAZA_LS[ID_LS],MATCH(tab_Ukrepi_casovnica[[#This Row],[Lokalna_skupnost]],tab_BAZA_LS[Naziv lokalne skupnosti],0)),\"\")","v":""},null,null,null,{"$f":"IFERROR(INDEX(tab_BAZA_Ukrepi[ID_UKR],MATCH(tab_Ukrepi_casovnica[[#This Row],[ID_UKR]],tab_BAZA_Ukrepi[Kratek opis],0)),\"\")","v":""},null,null,null,null,null,null,null,null,1,1,"",0]
[null,6,{"$f":"Osnovni_podatki!$F$12","v":0},{"$f":"Osnovni_podatki!$E$7","v":""},{"$f":"Osnovni_podatki!$D$7","v":""},{"$f":"IFERROR(INDEX(tab_BAZA_LS[ID_LS],MATCH(tab_Ukrepi_casovnica[[#This Row],[Lokalna_skupnost]],tab_BAZA_LS[Naziv lokalne skupnosti],0)),\"\")","v":""},null,null,null,{"$f":"IFERROR(INDEX(tab_BAZA_Ukrepi[ID_UKR],MATCH(tab_Ukrepi_casovnica[[#This Row],[ID_UKR]],tab_BAZA_Ukrepi[Kratek opis],0)),\"\")","v":""},null,null,null,null,null,null,null,null,1,1,"",0]
[null,7,{"$f":"Osnovni_podatki!$F$12","v":0},{"$f":"Osnovni_podatki!$E$7","v":""},{"$f":"Osnovni_podatki!$D$7","v":""},{"$f":"IFERROR(INDEX(tab_BAZA_LS[ID_LS],MATCH(tab_Ukrepi_casovnica[[#This Row],[Lokalna_skupnost]],tab_BAZA_LS[Naziv lokalne skupnosti],0)),\"\")","v":""},null,null,null,{"$f":"IFERROR(INDEX(tab_BAZA_Ukrepi[ID_UKR],MATCH(tab_Ukrepi_casovnica[[#This Row],[ID_UKR]],tab_BAZA_Ukrepi[Kratek opis],0)),\"\")","v":""},null,null,null,null,null,null,null,null,1,1,"",0]
[null,8,{"$f":"Osnovni_podatki!$F$12","v":0},{"$f":"Osnovni_podatki!$E$7","v":""},{"$f":"Osnovni_podatki!$D$7","v":""},{"$f":"IFERROR(INDEX(tab_BAZA_LS[ID_LS],MATCH(tab_Ukrepi_casovnica[[#This Row],[Lokalna_skupnost]],tab_BAZA_LS[Naziv lokalne skupnosti],0)),\"\")","v":""},null,null,null,{"$f":"IFERROR(INDEX(tab_BAZA_Ukrepi[ID_UKR],MATCH(tab_Ukrepi_casovnica[[#This Row],[ID_UKR]],tab_BAZA_Ukrepi[Kratek opis],0)),\"\")","v":""},null,null,null,null,null,null,null,null,1,1,"",0]
[null,9,{"$f":"Osnovni_podatki!$F$12","v":0},{"$f":"Osnovni_podatki!$E$7","v":""},{"$f":"Osnovni_podatki!$D$7","v":""},{"$f":"IFERROR(INDEX(tab_BAZA_LS[ID_LS],MATCH(tab_Ukrepi_casovnica[[#This Row],[Lokalna_skupnost]],tab_BAZA_LS[Naziv lokalne skupnosti],0)),\"\")","v":""},null,null,null,{"$f":"IFERROR(INDEX(tab_BAZA_Ukrepi[ID_UKR],MATCH(tab_Ukrepi_casovnica[[#This Row],[ID_UKR]],tab_BAZA_Ukrepi[Kratek opis],0)),\"\")","v":""},null,null,null,null,null,null,null,null,1,1,"",0]
[null,10,{"$f":"Osnovni_podatki!$F$12","v":0},{"$f":"Osnovni_podatki!$E$7","v":""},{"$f":"Osnovni_podatki!$D$7","v":""},{"$f":"IFERROR(INDEX(tab_BAZA_LS[ID_LS],MATCH(tab_Ukrepi_casovnica[[#This Row],[Lokalna_skupnost]],tab_BAZA_LS[Naziv lokalne skupnosti],0)),\"\")","v":""},null,null,null,{"$f":"IFERROR(INDEX(tab_BAZA_Ukrepi[ID_UKR],MATCH(tab_Ukrepi_casovnica[[#This Row],[ID_UKR]],tab_BAZA_Ukrepi[Kratek opis],0)),\"\")","v":""},null,null,null,null,null,null,null,null,1,1,"",0]
[null,11,{"$f":"Osnovni_podatki!$F$12","v":0},{"$f":"Osnovni_podatki!$E$7","v":""},{"$f":"Osnovni_podatki!$D$7","v":""},{"$f":"IFERROR(INDEX(tab_BAZA_LS[ID_LS],MATCH(tab_Ukrepi_casovnica[[#This Row],[Lokalna_skupnost]],tab_BAZA_LS[Naziv lokalne skupnosti],0)),\"\")","v":""},null,null,null,{"$f":"IFERROR(INDEX(tab_BAZA_Ukrepi[ID_UKR],MATCH(tab_Ukrepi_casovnica[[#This Row],[ID_UKR]],tab_BAZA_Ukrepi[Kratek opis],0)),\"\")","v":""},null,null,null,null,null,null,null,null,1,1,"",0]
[null,12,{"$f":"Osnovni_podatki!$F$12","v":0},{"$f":"Osnovni_podatki!$E$7","v":""},{"$f":"Osnovni_podatki!$D$7","v":""},{"$f":"IFERROR(INDEX(tab_BAZA_LS[ID_LS],MATCH(tab_Ukrepi_casovnica[[#This Row],[Lokalna_skupnost]],tab_BAZA_LS[Naziv lokalne skupnosti],0)),\"\")","v":""},null,null,null,{"$f":"IFERROR(INDEX(tab_BAZA_Ukrepi[ID_UKR],MATCH(tab_Ukrepi_casovnica[[#This Row],[ID_UKR]],tab_BAZA_Ukrepi[Kratek opis],0)),\"\")","v":""},null,null,null,null,null,null,null,null,1,1,"",0]
[null,13,{"$f":"Osnovni_podatki!$F$12","v":0},{"$f":"Osnovni_podatki!$E$7","v":""},{"$f":"Osnovni_podatki!$D$7","v":""},{"$f":"IFERROR(INDEX(tab_BAZA_LS[ID_LS],MATCH(tab_Ukrepi_casovnica[[#This Row],[Lokalna_skupnost]],tab_BAZA_LS[Naziv lokalne skupnosti],0)),\"\")","v":""},null,null,null,{"$f":"IFERROR(INDEX(tab_BAZA_Ukrepi[ID_UKR],MATCH(tab_Ukrepi_casovnica[[#This Row],[ID_UKR]],tab_BAZA_Ukrepi[Kratek opis],0)),\"\")","v":""},null,null,null,null,null,null,null,null,1,1,"",0]
[null,14,{"$f":"Osnovni_podatki!$F$12","v":0},{"$f":"Osnovni_podatki!$E$7","v":""},{"$f":"Osnovni_podatki!$D$7","v":""},{"$f":"IFERROR(INDEX(tab_BAZA_LS[ID_LS],MATCH(tab_Ukrepi_casovnica[[#This Row],[Lokalna_skupnost]],tab_BAZA_LS[Naziv lokalne skupnosti],0)),\"\")","v":""},null,null,null,{"$f":"IFERROR(INDEX(tab_BAZA_Ukrepi[ID_UKR],MATCH(tab_Ukrepi_casovnica[[#This Row],[ID_UKR]],tab_BAZA_Ukrepi[Kratek opis],0)),\"\")","v":""},null,null,null,null,null,null,null,null,1,1,"",0]
[null,15,{"$f":"Osnovni_podatki!$F$12","v":0},{"$f":"Osnovni_podatki!$E$7","v":""},{"$f":"Osnovni_podatki!$D$7","v":""},{"$f":"IFERROR(INDEX(tab_BAZA_LS[ID_LS],MATCH(tab_Ukrepi_casovnica[[#This Row],[Lokalna_skupnost]],tab_BAZA_LS[Naziv lokalne skupnosti],0)),\"\")","v":""},null,null,null,{"$f":"IFERROR(INDEX(tab_BAZA_Ukrepi[ID_UKR],MATCH(tab_Ukrepi_casovnica[[#This Row],[ID_UKR]],tab_BAZA_Ukrepi[Kratek opis],0)),\"\")","v":""},null,null,null,null,null,null,null,null,1,1,"",0]
[null,16,{"$f":"Osnovni_podatki!$F$12","v":0},{"$f":"Osnovni_podatki!$E$7","v":""},{"$f":"Osnovni_podatki!$D$7","v":""},{"$f":"IFERROR(INDEX(tab_BAZA_LS[ID_LS],MATCH(tab_Ukrepi_casovnica[[#This Row],[Lokalna_skupnost]],tab_BAZA_LS[Naziv lokalne skupnosti],0)),\"\")","v":""},null,null,null,{"$f":"IFERROR(INDEX(tab_BAZA_Ukrepi[ID_UKR],MATCH(tab_Ukrepi_casovnica[[#This Row],[ID_UKR]],tab_BAZA_Ukrepi[Kratek opis],0)),\"\")","v":""},null,null,null,null,null,null,null,null,1,1,"",0]
[null,17,{"$f":"Osnovni_podatki!$F$12","v":0},{"$f":"Osnovni_podatki!$E$7","v":""},{"$f":"Osnovni_podatki!$D$7","v":""},{"$f":"IFERROR(INDEX(tab_BAZA_LS[ID_LS],MATCH(tab_Ukrepi_casovnica[[#This Row],[Lokalna_skupnost]],tab_BAZA_LS[Naziv lokalne skupnosti],0)),\"\")","v":""},null,null,null,{"$f":"IFERROR(INDEX(tab_BAZA_Ukrepi[ID_UKR],MATCH(tab_Ukrepi_casovnica[[#This Row],[ID_UKR]],tab_BAZA_Ukrepi[Kratek opis],0)),\"\")","v":""},null,null,null,null,null,null,null,null,1,1,"",0]
[null,18,{"$f":"Osnovni_podatki!$F$12","v":0},{"$f":"Osnovni_podatki!$E$7","v":""},{"$f":"Osnovni_podatki!$D$7","v":""},{"$f":"IFERROR(INDEX(tab_BAZA_LS[ID_LS],MATCH(tab_Ukrepi_casovnica[[#This Row],[Lokalna_skupnost]],tab_BAZA_LS[Naziv lokalne skupnosti],0)),\"\")","v":""},null,null,null,{"$f":"IFERROR(INDEX(tab_BAZA_Ukrepi[ID_UKR],MATCH(tab_Ukrepi_casovnica[[#This Row],[ID_UKR]],tab_BAZA_Ukrepi[Kratek opis],0)),\"\")","v":""},null,null,null,null,null,null,null,null,1,1,"",0]
[null,19,{"$f":"Osnovni_podatki!$F$12","v":0},{"$f":"Osnovni_podatki!$E$7","v":""},{"$f":"Osnovni_podatki!$D$7","v":""},{"$f":"IFERROR(INDEX(tab_BAZA_LS[ID_LS],MATCH(tab_Ukrepi_casovnica[[#This Row],[Lokalna_skupnost]],tab_BAZA_LS[Naziv lokalne skupnosti],0)),\"\")","v":""},null,null,null,{"$f":"IFERROR(INDEX(tab_BAZA_Ukrepi[ID_UKR],MATCH(tab_Ukrepi_casovnica[[#This Row],[ID_UKR]],tab_BAZA_Ukrepi[Kratek opis],0)),\"\")","v":""},null,null,null,null,null,null,null,null,1,1,"",0]
[null,20,{"$f":"Osnovni_podatki!$F$12","v":0},{"$f":"Osnovni_podatki!$E$7","v":""},{"$f":"Osnovni_podatki!$D$7","v":""},{"$f":"IFERROR(INDEX(tab_BAZA_LS[ID_LS],MATCH(tab_Ukrepi_casovnica[[#This Row],[Lokalna_skupnost]],tab_BAZA_LS[Naziv lokalne skupnosti],0)),\"\")","v":""},null,null,null,{"$f":"IFERROR(INDEX(tab_BAZA_Ukrepi[ID_UKR],MATCH(tab_Ukrepi_casovnica[[#This Row],[ID_UKR]],tab_BAZA_Ukrepi[Kratek opis],0)),\"\")","v":""},null,null,null,null,null,null,null,null,1,1,"",0]
[null,21,{"$f":"Osnovni_podatki!$F$12","v":0},{"$f":"Osnovni_podatki!$E$7","v":""},{"$f":"Osnovni_podatki!$D$7","v":""},{"$f":"IFERROR(INDEX(tab_BAZA_LS[ID_LS],MATCH(tab_Ukrepi_casovnica[[#This Row],[Lokalna_skupnost]],tab_BAZA_LS[Naziv lokalne skupnosti],0)),\"\")","v":""},null,null,null,{"$f":"IFERROR(INDEX(tab_BAZA_Ukrepi[ID_UKR],MATCH(tab_Ukrepi_casovnica[[#This Row],[ID_UKR]],tab_BAZA_Ukrepi[Kratek opis],0)),\"\")","v":""},null,null,null,null,null,null,null,null,1,1,"",0]
[null,22,{"$f":"Osnovni_podatki!$F$12","v":0},{"$f":"Osnovni_podatki!$E$7","v":""},{"$f":"Osnovni_podatki!$D$7","v":""},{"$f":"IFERROR(INDEX(tab_BAZA_LS[ID_LS],MATCH(tab_Ukrepi_casovnica[[#This Row],[Lokalna_skupnost]],tab_BAZA_LS[Naziv lokalne skupnosti],0)),\"\")","v":""},null,null,null,{"$f":"IFERROR(INDEX(tab_BAZA_Ukrepi[ID_UKR],MATCH(tab_Ukrepi_casovnica[[#This Row],[ID_UKR]],tab_BAZA_Ukrepi[Kratek opis],0)),\"\")","v":""},null,null,null,null,null,null,null,null,1,1,"",0]
[null,23,{"$f":"Osnovni_podatki!$F$12","v":0},{"$f":"Osnovni_podatki!$E$7","v":""},{"$f":"Osnovni_podatki!$D$7","v":""},{"$f":"IFERROR(INDEX(tab_BAZA_LS[ID_LS],MATCH(tab_Ukrepi_casovnica[[#This Row],[Lokalna_skupnost]],tab_BAZA_LS[Naziv lokalne skupnosti],0)),\"\")","v":""},null,null,null,{"$f":"IFERROR(INDEX(tab_BAZA_Ukrepi[ID_UKR],MATCH(tab_Ukrepi_casovnica[[#This Row],[ID_UKR]],tab_BAZA_Ukrepi[Kratek opis],0)),\"\")","v":""},null,null,null,null,null,null,null,null,1,1,"",0]
[null,24,{"$f":"Osnovni_podatki!$F$12","v":0},{"$f":"Osnovni_podatki!$E$7","v":""},{"$f":"Osnovni_podatki!$D$7","v":""},{"$f":"IFERROR(INDEX(tab_BAZA_LS[ID_LS],MATCH(tab_Ukrepi_casovnica[[#This Row],[Lokalna_skupnost]],tab_BAZA_LS[Naziv lokalne skupnosti],0)),\"\")","v":""},null,null,null,{"$f":"IFERROR(INDEX(tab_BAZA_Ukrepi[ID_UKR],MATCH(tab_Ukrepi_casovnica[[#This Row],[ID_UKR]],tab_BAZA_Ukrepi[Kratek opis],0)),\"\")","v":""},null,null,null,null,null,null,null,null,1,1,"",0]
[null,25,{"$f":"Osnovni_podatki!$F$12","v":0},{"$f":"Osnovni_podatki!$E$7","v":""},{"$f":"Osnovni_podatki!$D$7","v":""},{"$f":"IFERROR(INDEX(tab_BAZA_LS[ID_LS],MATCH(tab_Ukrepi_casovnica[[#This Row],[Lokalna_skupnost]],tab_BAZA_LS[Naziv lokalne skupnosti],0)),\"\")","v":""},null,null,null,{"$f":"IFERROR(INDEX(tab_BAZA_Ukrepi[ID_UKR],MATCH(tab_Ukrepi_casovnica[[#This Row],[ID_UKR]],tab_BAZA_Ukrepi[Kratek opis],0)),\"\")","v":""},null,null,null,null,null,null,null,null,1,1,"",0]
[null,26,{"$f":"Osnovni_podatki!$F$12","v":0},{"$f":"Osnovni_podatki!$E$7","v":""},{"$f":"Osnovni_podatki!$D$7","v":""},{"$f":"IFERROR(INDEX(tab_BAZA_LS[ID_LS],MATCH(tab_Ukrepi_casovnica[[#This Row],[Lokalna_skupnost]],tab_BAZA_LS[Naziv lokalne skupnosti],0)),\"\")","v":""},null,null,null,{"$f":"IFERROR(INDEX(tab_BAZA_Ukrepi[ID_UKR],MATCH(tab_Ukrepi_casovnica[[#This Row],[ID_UKR]],tab_BAZA_Ukrepi[Kratek opis],0)),\"\")","v":""},null,null,null,null,null,null,null,null,1,1,"",0]
[null,27,{"$f":"Osnovni_podatki!$F$12","v":0},{"$f":"Osnovni_podatki!$E$7","v":""},{"$f":"Osnovni_podatki!$D$7","v":""},{"$f":"IFERROR(INDEX(tab_BAZA_LS[ID_LS],MATCH(tab_Ukrepi_casovnica[[#This Row],[Lokalna_skupnost]],tab_BAZA_LS[Naziv lokalne skupnosti],0)),\"\")","v":""},null,null,null,{"$f":"IFERROR(INDEX(tab_BAZA_Ukrepi[ID_UKR],MATCH(tab_Ukrepi_casovnica[[#This Row],[ID_UKR]],tab_BAZA_Ukrepi[Kratek opis],0)),\"\")","v":""},null,null,null,null,null,null,null,null,1,1,"",0]
[null,28,{"$f":"Osnovni_podatki!$F$12","v":0},{"$f":"Osnovni_podatki!$E$7","v":""},{"$f":"Osnovni_podatki!$D$7","v":""},{"$f":"IFERROR(INDEX(tab_BAZA_LS[ID_LS],MATCH(tab_Ukrepi_casovnica[[#This Row],[Lokalna_skupnost]],tab_BAZA_LS[Naziv lokalne skupnosti],0)),\"\")","v":""},null,null,null,{"$f":"IFERROR(INDEX(tab_BAZA_Ukrepi[ID_UKR],MATCH(tab_Ukrepi_casovnica[[#This Row],[ID_UKR]],tab_BAZA_Ukrepi[Kratek opis],0)),\"\")","v":""},null,null,null,null,null,null,null,null,1,1,"",0]
[null,29,{"$f":"Osnovni_podatki!$F$12","v":0},{"$f":"Osnovni_podatki!$E$7","v":""},{"$f":"Osnovni_podatki!$D$7","v":""},{"$f":"IFERROR(INDEX(tab_BAZA_LS[ID_LS],MATCH(tab_Ukrepi_casovnica[[#This Row],[Lokalna_skupnost]],tab_BAZA_LS[Naziv lokalne skupnosti],0)),\"\")","v":""},null,null,null,{"$f":"IFERROR(INDEX(tab_BAZA_Ukrepi[ID_UKR],MATCH(tab_Ukrepi_casovnica[[#This Row],[ID_UKR]],tab_BAZA_Ukrepi[Kratek opis],0)),\"\")","v":""},null,null,null,null,null,null,null,null,1,1,"",0]
[null,30,{"$f":"Osnovni_podatki!$F$12","v":0},{"$f":"Osnovni_podatki!$E$7","v":""},{"$f":"Osnovni_podatki!$D$7","v":""},{"$f":"IFERROR(INDEX(tab_BAZA_LS[ID_LS],MATCH(tab_Ukrepi_casovnica[[#This Row],[Lokalna_skupnost]],tab_BAZA_LS[Naziv lokalne skupnosti],0)),\"\")","v":""},null,null,null,{"$f":"IFERROR(INDEX(tab_BAZA_Ukrepi[ID_UKR],MATCH(tab_Ukrepi_casovnica[[#This Row],[ID_UKR]],tab_BAZA_Ukrepi[Kratek opis],0)),\"\")","v":""},null,null,null,null,null,null,null,null,1,1,"",0]
[null,31,{"$f":"Osnovni_podatki!$F$12","v":0},{"$f":"Osnovni_podatki!$E$7","v":""},{"$f":"Osnovni_podatki!$D$7","v":""},{"$f":"IFERROR(INDEX(tab_BAZA_LS[ID_LS],MATCH(tab_Ukrepi_casovnica[[#This Row],[Lokalna_skupnost]],tab_BAZA_LS[Naziv lokalne skupnosti],0)),\"\")","v":""},null,null,null,{"$f":"IFERROR(INDEX(tab_BAZA_Ukrepi[ID_UKR],MATCH(tab_Ukrepi_casovnica[[#This Row],[ID_UKR]],tab_BAZA_Ukrepi[Kratek opis],0)),\"\")","v":""},null,null,null,null,null,null,null,null,1,1,"",0]
[null,32,{"$f":"Osnovni_podatki!$F$12","v":0},{"$f":"Osnovni_podatki!$E$7","v":""},{"$f":"Osnovni_podatki!$D$7","v":""},{"$f":"IFERROR(INDEX(tab_BAZA_LS[ID_LS],MATCH(tab_Ukrepi_casovnica[[#This Row],[Lokalna_skupnost]],tab_BAZA_LS[Naziv lokalne skupnosti],0)),\"\")","v":""},null,null,null,{"$f":"IFERROR(INDEX(tab_BAZA_Ukrepi[ID_UKR],MATCH(tab_Ukrepi_casovnica[[#This Row],[ID_UKR]],tab_BAZA_Ukrepi[Kratek opis],0)),\"\")","v":""},null,null,null,null,null,null,null,null,1,1,"",0]
[null,33,{"$f":"Osnovni_podatki!$F$12","v":0},{"$f":"Osnovni_podatki!$E$7","v":""},{"$f":"Osnovni_podatki!$D$7","v":""},{"$f":"IFERROR(INDEX(tab_BAZA_LS[ID_LS],MATCH(tab_Ukrepi_casovnica[[#This Row],[Lokalna_skupnost]],tab_BAZA_LS[Naziv lokalne skupnosti],0)),\"\")","v":""},null,null,null,{"$f":"IFERROR(INDEX(tab_BAZA_Ukrepi[ID_UKR],MATCH(tab_Ukrepi_casovnica[[#This Row],[ID_UKR]],tab_BAZA_Ukrepi[Kratek opis],0)),\"\")","v":""},null,null,null,null,null,null,null,null,1,1,"",0]
[null,34,{"$f":"Osnovni_podatki!$F$12","v":0},{"$f":"Osnovni_podatki!$E$7","v":""},{"$f":"Osnovni_podatki!$D$7","v":""},{"$f":"IFERROR(INDEX(tab_BAZA_LS[ID_LS],MATCH(tab_Ukrepi_casovnica[[#This Row],[Lokalna_skupnost]],tab_BAZA_LS[Naziv lokalne skupnosti],0)),\"\")","v":""},null,null,null,{"$f":"IFERROR(INDEX(tab_BAZA_Ukrepi[ID_UKR],MATCH(tab_Ukrepi_casovnica[[#This Row],[ID_UKR]],tab_BAZA_Ukrepi[Kratek opis],0)),\"\")","v":""},null,null,null,null,null,null,null,null,1,1,"",0]
[null,35,{"$f":"Osnovni_podatki!$F$12","v":0},{"$f":"Osnovni_podatki!$E$7","v":""},{"$f":"Osnovni_podatki!$D$7","v":""},{"$f":"IFERROR(INDEX(tab_BAZA_LS[ID_LS],MATCH(tab_Ukrepi_casovnica[[#This Row],[Lokalna_skupnost]],tab_BAZA_LS[Naziv lokalne skupnosti],0)),\"\")","v":""},null,null,null,{"$f":"IFERROR(INDEX(tab_BAZA_Ukrepi[ID_UKR],MATCH(tab_Ukrepi_casovnica[[#This Row],[ID_UKR]],tab_BAZA_Ukrepi[Kratek opis],0)),\"\")","v":""},null,null,null,null,null,null,null,null,1,1,"",0]
[null,36,{"$f":"Osnovni_podatki!$F$12","v":0},{"$f":"Osnovni_podatki!$E$7","v":""},{"$f":"Osnovni_podatki!$D$7","v":""},{"$f":"IFERROR(INDEX(tab_BAZA_LS[ID_LS],MATCH(tab_Ukrepi_casovnica[[#This Row],[Lokalna_skupnost]],tab_BAZA_LS[Naziv lokalne skupnosti],0)),\"\")","v":""},null,null,null,{"$f":"IFERROR(INDEX(tab_BAZA_Ukrepi[ID_UKR],MATCH(tab_Ukrepi_casovnica[[#This Row],[ID_UKR]],tab_BAZA_Ukrepi[Kratek opis],0)),\"\")","v":""},null,null,null,null,null,null,null,null,1,1,"",0]
[null,37,{"$f":"Osnovni_podatki!$F$12","v":0},{"$f":"Osnovni_podatki!$E$7","v":""},{"$f":"Osnovni_podatki!$D$7","v":""},{"$f":"IFERROR(INDEX(tab_BAZA_LS[ID_LS],MATCH(tab_Ukrepi_casovnica[[#This Row],[Lokalna_skupnost]],tab_BAZA_LS[Naziv lokalne skupnosti],0)),\"\")","v":""},null,null,null,{"$f":"IFERROR(INDEX(tab_BAZA_Ukrepi[ID_UKR],MATCH(tab_Ukrepi_casovnica[[#This Row],[ID_UKR]],tab_BAZA_Ukrepi[Kratek opis],0)),\"\")","v":""},null,null,null,null,null,null,null,null,1,1,"",0]
[null,38,{"$f":"Osnovni_podatki!$F$12","v":0},{"$f":"Osnovni_podatki!$E$7","v":""},{"$f":"Osnovni_podatki!$D$7","v":""},{"$f":"IFERROR(INDEX(tab_BAZA_LS[ID_LS],MATCH(tab_Ukrepi_casovnica[[#This Row],[Lokalna_skupnost]],tab_BAZA_LS[Naziv lokalne skupnosti],0)),\"\")","v":""},null,null,null,{"$f":"IFERROR(INDEX(tab_BAZA_Ukrepi[ID_UKR],MATCH(tab_Ukrepi_casovnica[[#This Row],[ID_UKR]],tab_BAZA_Ukrepi[Kratek opis],0)),\"\")","v":""},null,null,null,null,null,null,null,null,1,1,"",0]
[null,39,{"$f":"Osnovni_podatki!$F$12","v":0},{"$f":"Osnovni_podatki!$E$7","v":""},{"$f":"Osnovni_podatki!$D$7","v":""},{"$f":"IFERROR(INDEX(tab_BAZA_LS[ID_LS],MATCH(tab_Ukrepi_casovnica[[#This Row],[Lokalna_skupnost]],tab_BAZA_LS[Naziv lokalne skupnosti],0)),\"\")","v":""},null,null,null,{"$f":"IFERROR(INDEX(tab_BAZA_Ukrepi[ID_UKR],MATCH(tab_Ukrepi_casovnica[[#This Row],[ID_UKR]],tab_BAZA_Ukrepi[Kratek opis],0)),\"\")","v":""},null,null,null,null,null,null,null,null,1,1,"",0]
[null,40,{"$f":"Osnovni_podatki!$F$12","v":0},{"$f":"Osnovni_podatki!$E$7","v":""},{"$f":"Osnovni_podatki!$D$7","v":""},{"$f":"IFERROR(INDEX(tab_BAZA_LS[ID_LS],MATCH(tab_Ukrepi_casovnica[[#This Row],[Lokalna_skupnost]],tab_BAZA_LS[Naziv lokalne skupnosti],0)),\"\")","v":""},null,null,null,{"$f":"IFERROR(INDEX(tab_BAZA_Ukrepi[ID_UKR],MATCH(tab_Ukrepi_casovnica[[#This Row],[ID_UKR]],tab_BAZA_Ukrepi[Kratek opis],0)),\"\")","v":""},null,null,null,null,null,null,null,null,1,1,"",0]
[null,41,{"$f":"Osnovni_podatki!$F$12","v":0},{"$f":"Osnovni_podatki!$E$7","v":""},{"$f":"Osnovni_podatki!$D$7","v":""},{"$f":"IFERROR(INDEX(tab_BAZA_LS[ID_LS],MATCH(tab_Ukrepi_casovnica[[#This Row],[Lokalna_skupnost]],tab_BAZA_LS[Naziv lokalne skupnosti],0)),\"\")","v":""},null,null,null,{"$f":"IFERROR(INDEX(tab_BAZA_Ukrepi[ID_UKR],MATCH(tab_Ukrepi_casovnica[[#This Row],[ID_UKR]],tab_BAZA_Ukrepi[Kratek opis],0)),\"\")","v":""},null,null,null,null,null,null,null,null,1,1,"",0]
[null,42,{"$f":"Osnovni_podatki!$F$12","v":0},{"$f":"Osnovni_podatki!$E$7","v":""},{"$f":"Osnovni_podatki!$D$7","v":""},{"$f":"IFERROR(INDEX(tab_BAZA_LS[ID_LS],MATCH(tab_Ukrepi_casovnica[[#This Row],[Lokalna_skupnost]],tab_BAZA_LS[Naziv lokalne skupnosti],0)),\"\")","v":""},null,null,null,{"$f":"IFERROR(INDEX(tab_BAZA_Ukrepi[ID_UKR],MATCH(tab_Ukrepi_casovnica[[#This Row],[ID_UKR]],tab_BAZA_Ukrepi[Kratek opis],0)),\"\")","v":""},null,null,null,null,null,null,null,null,1,1,"",0]
[null,43,{"$f":"Osnovni_podatki!$F$12","v":0},{"$f":"Osnovni_podatki!$E$7","v":""},{"$f":"Osnovni_podatki!$D$7","v":""},{"$f":"IFERROR(INDEX(tab_BAZA_LS[ID_LS],MATCH(tab_Ukrepi_casovnica[[#This Row],[Lokalna_skupnost]],tab_BAZA_LS[Naziv lokalne skupnosti],0)),\"\")","v":""},null,null,null,{"$f":"IFERROR(INDEX(tab_BAZA_Ukrepi[ID_UKR],MATCH(tab_Ukrepi_casovnica[[#This Row],[ID_UKR]],tab_BAZA_Ukrepi[Kratek opis],0)),\"\")","v":""},null,null,null,null,null,null,null,null,1,1,"",0]
[null,44,{"$f":"Osnovni_podatki!$F$12","v":0},{"$f":"Osnovni_podatki!$E$7","v":""},{"$f":"Osnovni_podatki!$D$7","v":""},{"$f":"IFERROR(INDEX(tab_BAZA_LS[ID_LS],MATCH(tab_Ukrepi_casovnica[[#This Row],[Lokalna_skupnost]],tab_BAZA_LS[Naziv lokalne skupnosti],0)),\"\")","v":""},null,null,null,{"$f":"IFERROR(INDEX(tab_BAZA_Ukrepi[ID_UKR],MATCH(tab_Ukrepi_casovnica[[#This Row],[ID_UKR]],tab_BAZA_Ukrepi[Kratek opis],0)),\"\")","v":""},null,null,null,null,null,null,null,null,1,1,"",0]
[null,45,{"$f":"Osnovni_podatki!$F$12","v":0},{"$f":"Osnovni_podatki!$E$7","v":""},{"$f":"Osnovni_podatki!$D$7","v":""},{"$f":"IFERROR(INDEX(tab_BAZA_LS[ID_LS],MATCH(tab_Ukrepi_casovnica[[#This Row],[Lokalna_skupnost]],tab_BAZA_LS[Naziv lokalne skupnosti],0)),\"\")","v":""},null,null,null,{"$f":"IFERROR(INDEX(tab_BAZA_Ukrepi[ID_UKR],MATCH(tab_Ukrepi_casovnica[[#This Row],[ID_UKR]],tab_BAZA_Ukrepi[Kratek opis],0)),\"\")","v":""},null,null,null,null,null,null,null,null,1,1,"",0]
[null,46,{"$f":"Osnovni_podatki!$F$12","v":0},{"$f":"Osnovni_podatki!$E$7","v":""},{"$f":"Osnovni_podatki!$D$7","v":""},{"$f":"IFERROR(INDEX(tab_BAZA_LS[ID_LS],MATCH(tab_Ukrepi_casovnica[[#This Row],[Lokalna_skupnost]],tab_BAZA_LS[Naziv lokalne skupnosti],0)),\"\")","v":""},null,null,null,{"$f":"IFERROR(INDEX(tab_BAZA_Ukrepi[ID_UKR],MATCH(tab_Ukrepi_casovnica[[#This Row],[ID_UKR]],tab_BAZA_Ukrepi[Kratek opis],0)),\"\")","v":""},null,null,null,null,null,null,null,null,1,1,"",0]
[null,47,{"$f":"Osnovni_podatki!$F$12","v":0},{"$f":"Osnovni_podatki!$E$7","v":""},{"$f":"Osnovni_podatki!$D$7","v":""},{"$f":"IFERROR(INDEX(tab_BAZA_LS[ID_LS],MATCH(tab_Ukrepi_casovnica[[#This Row],[Lokalna_skupnost]],tab_BAZA_LS[Naziv lokalne skupnosti],0)),\"\")","v":""},null,null,null,{"$f":"IFERROR(INDEX(tab_BAZA_Ukrepi[ID_UKR],MATCH(tab_Ukrepi_casovnica[[#This Row],[ID_UKR]],tab_BAZA_Ukrepi[Kratek opis],0)),\"\")","v":""},null,null,null,null,null,null,null,null,1,1,"",0]
[null,48,{"$f":"Osnovni_podatki!$F$12","v":0},{"$f":"Osnovni_podatki!$E$7","v":""},{"$f":"Osnovni_podatki!$D$7","v":""},{"$f":"IFERROR(INDEX(tab_BAZA_LS[ID_LS],MATCH(tab_Ukrepi_casovnica[[#This Row],[Lokalna_skupnost]],tab_BAZA_LS[Naziv lokalne skupnosti],0)),\"\")","v":""},null,null,null,{"$f":"IFERROR(INDEX(tab_BAZA_Ukrepi[ID_UKR],MATCH(tab_Ukrepi_casovnica[[#This Row],[ID_UKR]],tab_BAZA_Ukrepi[Kratek opis],0)),\"\")","v":""},null,null,null,null,null,null,null,null,1,1,"",0]
[null,49,{"$f":"Osnovni_podatki!$F$12","v":0},{"$f":"Osnovni_podatki!$E$7","v":""},{"$f":"Osnovni_podatki!$D$7","v":""},{"$f":"IFERROR(INDEX(tab_BAZA_LS[ID_LS],MATCH(tab_Ukrepi_casovnica[[#This Row],[Lokalna_skupnost]],tab_BAZA_LS[Naziv lokalne skupnosti],0)),\"\")","v":""},null,null,null,{"$f":"IFERROR(INDEX(tab_BAZA_Ukrepi[ID_UKR],MATCH(tab_Ukrepi_casovnica[[#This Row],[ID_UKR]],tab_BAZA_Ukrepi[Kratek opis],0)),\"\")","v":""},null,null,null,null,null,null,null,null,1,1,"",0]
[null,50,{"$f":"Osnovni_podatki!$F$12","v":0},{"$f":"Osnovni_podatki!$E$7","v":""},{"$f":"Osnovni_podatki!$D$7","v":""},{"$f":"IFERROR(INDEX(tab_BAZA_LS[ID_LS],MATCH(tab_Ukrepi_casovnica[[#This Row],[Lokalna_skupnost]],tab_BAZA_LS[Naziv lokalne skupnosti],0)),\"\")","v":""},null,null,null,{"$f":"IFERROR(INDEX(tab_BAZA_Ukrepi[ID_UKR],MATCH(tab_Ukrepi_casovnica[[#This Row],[ID_UKR]],tab_BAZA_Ukrepi[Kratek opis],0)),\"\")","v":""},null,null,null,null,null,null,null,null,{"$f":"IF(AND(J61=\"UK_9\",K61=\"\"),0,1)","v":1},{"$f":"IF(AND(ISBLANK(G61),ISBLANK(H61),ISBLANK(I61),ISBLANK(L61),ISBLANK(M61),ISBLANK(N61),ISBLANK(O61)),1,IF(OR(ISBLANK(G61),ISBLANK(H61),ISBLANK(I61),ISBLANK(L61),ISBLANK(M61),ISBLANK(N61),ISBLANK(O61)),0,1))","v":1},{"$f":"G61&H61&I61","v":""},0]
[null,51,{"$f":"Osnovni_podatki!$F$12","v":0},{"$f":"Osnovni_podatki!$E$7","v":""},{"$f":"Osnovni_podatki!$D$7","v":""},{"$f":"IFERROR(INDEX(tab_BAZA_LS[ID_LS],MATCH(tab_Ukrepi_casovnica[[#This Row],[Lokalna_skupnost]],tab_BAZA_LS[Naziv lokalne skupnosti],0)),\"\")","v":""},null,null,null,{"$f":"IFERROR(INDEX(tab_BAZA_Ukrepi[ID_UKR],MATCH(tab_Ukrepi_casovnica[[#This Row],[ID_UKR]],tab_BAZA_Ukrepi[Kratek opis],0)),\"\")","v":""},null,null,null,null,null,null,null,null,{"$f":"IF(AND(J62=\"UK_9\",K62=\"\"),0,1)","v":1},{"$f":"IF(AND(ISBLANK(G62),ISBLANK(H62),ISBLANK(I62),ISBLANK(L62),ISBLANK(M62),ISBLANK(N62),ISBLANK(O62)),1,IF(OR(ISBLANK(G62),ISBLANK(H62),ISBLANK(I62),ISBLANK(L62),ISBLANK(M62),ISBLANK(N62),ISBLANK(O62)),0,1))","v":1},{"$f":"G62&H62&I62","v":""},0]
[null,52,{"$f":"Osnovni_podatki!$F$12","v":0},{"$f":"Osnovni_podatki!$E$7","v":""},{"$f":"Osnovni_podatki!$D$7","v":""},{"$f":"IFERROR(INDEX(tab_BAZA_LS[ID_LS],MATCH(tab_Ukrepi_casovnica[[#This Row],[Lokalna_skupnost]],tab_BAZA_LS[Naziv lokalne skupnosti],0)),\"\")","v":""},null,null,null,{"$f":"IFERROR(INDEX(tab_BAZA_Ukrepi[ID_UKR],MATCH(tab_Ukrepi_casovnica[[#This Row],[ID_UKR]],tab_BAZA_Ukrepi[Kratek opis],0)),\"\")","v":""},null,null,null,null,null,null,null,null,1,1,"",0]
[null,53,{"$f":"Osnovni_podatki!$F$12","v":0},{"$f":"Osnovni_podatki!$E$7","v":""},{"$f":"Osnovni_podatki!$D$7","v":""},{"$f":"IFERROR(INDEX(tab_BAZA_LS[ID_LS],MATCH(tab_Ukrepi_casovnica[[#This Row],[Lokalna_skupnost]],tab_BAZA_LS[Naziv lokalne skupnosti],0)),\"\")","v":""},null,null,null,{"$f":"IFERROR(INDEX(tab_BAZA_Ukrepi[ID_UKR],MATCH(tab_Ukrepi_casovnica[[#This Row],[ID_UKR]],tab_BAZA_Ukrepi[Kratek opis],0)),\"\")","v":""},null,null,null,null,null,null,null,null,1,1,"",0]
[null,54,{"$f":"Osnovni_podatki!$F$12","v":0},{"$f":"Osnovni_podatki!$E$7","v":""},{"$f":"Osnovni_podatki!$D$7","v":""},{"$f":"IFERROR(INDEX(tab_BAZA_LS[ID_LS],MATCH(tab_Ukrepi_casovnica[[#This Row],[Lokalna_skupnost]],tab_BAZA_LS[Naziv lokalne skupnosti],0)),\"\")","v":""},null,null,null,{"$f":"IFERROR(INDEX(tab_BAZA_Ukrepi[ID_UKR],MATCH(tab_Ukrepi_casovnica[[#This Row],[ID_UKR]],tab_BAZA_Ukrepi[Kratek opis],0)),\"\")","v":""},null,null,null,null,null,null,null,null,1,1,"",0]
[null,55,{"$f":"Osnovni_podatki!$F$12","v":0},{"$f":"Osnovni_podatki!$E$7","v":""},{"$f":"Osnovni_podatki!$D$7","v":""},{"$f":"IFERROR(INDEX(tab_BAZA_LS[ID_LS],MATCH(tab_Ukrepi_casovnica[[#This Row],[Lokalna_skupnost]],tab_BAZA_LS[Naziv lokalne skupnosti],0)),\"\")","v":""},null,null,null,{"$f":"IFERROR(INDEX(tab_BAZA_Ukrepi[ID_UKR],MATCH(tab_Ukrepi_casovnica[[#This Row],[ID_UKR]],tab_BAZA_Ukrepi[Kratek opis],0)),\"\")","v":""},null,null,null,null,null,null,null,null,1,1,"",0]
[null,56,{"$f":"Osnovni_podatki!$F$12","v":0},{"$f":"Osnovni_podatki!$E$7","v":""},{"$f":"Osnovni_podatki!$D$7","v":""},{"$f":"IFERROR(INDEX(tab_BAZA_LS[ID_LS],MATCH(tab_Ukrepi_casovnica[[#This Row],[Lokalna_skupnost]],tab_BAZA_LS[Naziv lokalne skupnosti],0)),\"\")","v":""},null,null,null,{"$f":"IFERROR(INDEX(tab_BAZA_Ukrepi[ID_UKR],MATCH(tab_Ukrepi_casovnica[[#This Row],[ID_UKR]],tab_BAZA_Ukrepi[Kratek opis],0)),\"\")","v":""},null,null,null,null,null,null,null,null,1,1,"",0]
[null,57,{"$f":"Osnovni_podatki!$F$12","v":0},{"$f":"Osnovni_podatki!$E$7","v":""},{"$f":"Osnovni_podatki!$D$7","v":""},{"$f":"IFERROR(INDEX(tab_BAZA_LS[ID_LS],MATCH(tab_Ukrepi_casovnica[[#This Row],[Lokalna_skupnost]],tab_BAZA_LS[Naziv lokalne skupnosti],0)),\"\")","v":""},null,null,null,{"$f":"IFERROR(INDEX(tab_BAZA_Ukrepi[ID_UKR],MATCH(tab_Ukrepi_casovnica[[#This Row],[ID_UKR]],tab_BAZA_Ukrepi[Kratek opis],0)),\"\")","v":""},null,null,null,null,null,null,null,null,1,1,"",0]
[null,58,{"$f":"Osnovni_podatki!$F$12","v":0},{"$f":"Osnovni_podatki!$E$7","v":""},{"$f":"Osnovni_podatki!$D$7","v":""},{"$f":"IFERROR(INDEX(tab_BAZA_LS[ID_LS],MATCH(tab_Ukrepi_casovnica[[#This Row],[Lokalna_skupnost]],tab_BAZA_LS[Naziv lokalne skupnosti],0)),\"\")","v":""},null,null,null,{"$f":"IFERROR(INDEX(tab_BAZA_Ukrepi[ID_UKR],MATCH(tab_Ukrepi_casovnica[[#This Row],[ID_UKR]],tab_BAZA_Ukrepi[Kratek opis],0)),\"\")","v":""},null,null,null,null,null,null,null,null,1,1,"",0]
[null,59,{"$f":"Osnovni_podatki!$F$12","v":0},{"$f":"Osnovni_podatki!$E$7","v":""},{"$f":"Osnovni_podatki!$D$7","v":""},{"$f":"IFERROR(INDEX(tab_BAZA_LS[ID_LS],MATCH(tab_Ukrepi_casovnica[[#This Row],[Lokalna_skupnost]],tab_BAZA_LS[Naziv lokalne skupnosti],0)),\"\")","v":""},null,null,null,{"$f":"IFERROR(INDEX(tab_BAZA_Ukrepi[ID_UKR],MATCH(tab_Ukrepi_casovnica[[#This Row],[ID_UKR]],tab_BAZA_Ukrepi[Kratek opis],0)),\"\")","v":""},null,null,null,null,null,null,null,null,1,1,"",0]
[null,60,{"$f":"Osnovni_podatki!$F$12","v":0},{"$f":"Osnovni_podatki!$E$7","v":""},{"$f":"Osnovni_podatki!$D$7","v":""},{"$f":"IFERROR(INDEX(tab_BAZA_LS[ID_LS],MATCH(tab_Ukrepi_casovnica[[#This Row],[Lokalna_skupnost]],tab_BAZA_LS[Naziv lokalne skupnosti],0)),\"\")","v":""},null,null,null,{"$f":"IFERROR(INDEX(tab_BAZA_Ukrepi[ID_UKR],MATCH(tab_Ukrepi_casovnica[[#This Row],[ID_UKR]],tab_BAZA_Ukrepi[Kratek opis],0)),\"\")","v":""},null,null,null,null,null,null,null,null,1,1,"",0]
[null,61,{"$f":"Osnovni_podatki!$F$12","v":0},{"$f":"Osnovni_podatki!$E$7","v":""},{"$f":"Osnovni_podatki!$D$7","v":""},{"$f":"IFERROR(INDEX(tab_BAZA_LS[ID_LS],MATCH(tab_Ukrepi_casovnica[[#This Row],[Lokalna_skupnost]],tab_BAZA_LS[Naziv lokalne skupnosti],0)),\"\")","v":""},null,null,null,{"$f":"IFERROR(INDEX(tab_BAZA_Ukrepi[ID_UKR],MATCH(tab_Ukrepi_casovnica[[#This Row],[ID_UKR]],tab_BAZA_Ukrepi[Kratek opis],0)),\"\")","v":""},null,null,null,null,null,null,null,null,1,1,"",0]
[null,62,{"$f":"Osnovni_podatki!$F$12","v":0},{"$f":"Osnovni_podatki!$E$7","v":""},{"$f":"Osnovni_podatki!$D$7","v":""},{"$f":"IFERROR(INDEX(tab_BAZA_LS[ID_LS],MATCH(tab_Ukrepi_casovnica[[#This Row],[Lokalna_skupnost]],tab_BAZA_LS[Naziv lokalne skupnosti],0)),\"\")","v":""},null,null,null,{"$f":"IFERROR(INDEX(tab_BAZA_Ukrepi[ID_UKR],MATCH(tab_Ukrepi_casovnica[[#This Row],[ID_UKR]],tab_BAZA_Ukrepi[Kratek opis],0)),\"\")","v":""},null,null,null,null,null,null,null,null,1,1,"",0]
[null,63,{"$f":"Osnovni_podatki!$F$12","v":0},{"$f":"Osnovni_podatki!$E$7","v":""},{"$f":"Osnovni_podatki!$D$7","v":""},{"$f":"IFERROR(INDEX(tab_BAZA_LS[ID_LS],MATCH(tab_Ukrepi_casovnica[[#This Row],[Lokalna_skupnost]],tab_BAZA_LS[Naziv lokalne skupnosti],0)),\"\")","v":""},null,null,null,{"$f":"IFERROR(INDEX(tab_BAZA_Ukrepi[ID_UKR],MATCH(tab_Ukrepi_casovnica[[#This Row],[ID_UKR]],tab_BAZA_Ukrepi[Kratek opis],0)),\"\")","v":""},null,null,null,null,null,null,null,null,1,1,"",0]
[null,64,{"$f":"Osnovni_podatki!$F$12","v":0},{"$f":"Osnovni_podatki!$E$7","v":""},{"$f":"Osnovni_podatki!$D$7","v":""},{"$f":"IFERROR(INDEX(tab_BAZA_LS[ID_LS],MATCH(tab_Ukrepi_casovnica[[#This Row],[Lokalna_skupnost]],tab_BAZA_LS[Naziv lokalne skupnosti],0)),\"\")","v":""},null,null,null,{"$f":"IFERROR(INDEX(tab_BAZA_Ukrepi[ID_UKR],MATCH(tab_Ukrepi_casovnica[[#This Row],[ID_UKR]],tab_BAZA_Ukrepi[Kratek opis],0)),\"\")","v":""},null,null,null,null,null,null,null,null,1,1,"",0]
[null,65,{"$f":"Osnovni_podatki!$F$12","v":0},{"$f":"Osnovni_podatki!$E$7","v":""},{"$f":"Osnovni_podatki!$D$7","v":""},{"$f":"IFERROR(INDEX(tab_BAZA_LS[ID_LS],MATCH(tab_Ukrepi_casovnica[[#This Row],[Lokalna_skupnost]],tab_BAZA_LS[Naziv lokalne skupnosti],0)),\"\")","v":""},null,null,null,{"$f":"IFERROR(INDEX(tab_BAZA_Ukrepi[ID_UKR],MATCH(tab_Ukrepi_casovnica[[#This Row],[ID_UKR]],tab_BAZA_Ukrepi[Kratek opis],0)),\"\")","v":""},null,null,null,null,null,null,null,null,1,1,"",0]
[null,66,{"$f":"Osnovni_podatki!$F$12","v":0},{"$f":"Osnovni_podatki!$E$7","v":""},{"$f":"Osnovni_podatki!$D$7","v":""},{"$f":"IFERROR(INDEX(tab_BAZA_LS[ID_LS],MATCH(tab_Ukrepi_casovnica[[#This Row],[Lokalna_skupnost]],tab_BAZA_LS[Naziv lokalne skupnosti],0)),\"\")","v":""},null,null,null,{"$f":"IFERROR(INDEX(tab_BAZA_Ukrepi[ID_UKR],MATCH(tab_Ukrepi_casovnica[[#This Row],[ID_UKR]],tab_BAZA_Ukrepi[Kratek opis],0)),\"\")","v":""},null,null,null,null,null,null,null,null,1,1,"",{"$f":"IF((M77-L77)<0,1,0)","v":0}]
[null,67,{"$f":"Osnovni_podatki!$F$12","v":0},{"$f":"Osnovni_podatki!$E$7","v":""},{"$f":"Osnovni_podatki!$D$7","v":""},{"$f":"IFERROR(INDEX(tab_BAZA_LS[ID_LS],MATCH(tab_Ukrepi_casovnica[[#This Row],[Lokalna_skupnost]],tab_BAZA_LS[Naziv lokalne skupnosti],0)),\"\")","v":""},null,null,null,{"$f":"IFERROR(INDEX(tab_BAZA_Ukrepi[ID_UKR],MATCH(tab_Ukrepi_casovnica[[#This Row],[ID_UKR]],tab_BAZA_Ukrepi[Kratek opis],0)),\"\")","v":""},null,null,null,null,null,null,null,null,1,1,"",0]
[null,68,{"$f":"Osnovni_podatki!$F$12","v":0},{"$f":"Osnovni_podatki!$E$7","v":""},{"$f":"Osnovni_podatki!$D$7","v":""},{"$f":"IFERROR(INDEX(tab_BAZA_LS[ID_LS],MATCH(tab_Ukrepi_casovnica[[#This Row],[Lokalna_skupnost]],tab_BAZA_LS[Naziv lokalne skupnosti],0)),\"\")","v":""},null,null,null,{"$f":"IFERROR(INDEX(tab_BAZA_Ukrepi[ID_UKR],MATCH(tab_Ukrepi_casovnica[[#This Row],[ID_UKR]],tab_BAZA_Ukrepi[Kratek opis],0)),\"\")","v":""},null,null,null,null,null,null,null,null,1,1,"",0]
[null,69,{"$f":"Osnovni_podatki!$F$12","v":0},{"$f":"Osnovni_podatki!$E$7","v":""},{"$f":"Osnovni_podatki!$D$7","v":""},{"$f":"IFERROR(INDEX(tab_BAZA_LS[ID_LS],MATCH(tab_Ukrepi_casovnica[[#This Row],[Lokalna_skupnost]],tab_BAZA_LS[Naziv lokalne skupnosti],0)),\"\")","v":""},null,null,null,{"$f":"IFERROR(INDEX(tab_BAZA_Ukrepi[ID_UKR],MATCH(tab_Ukrepi_casovnica[[#This Row],[ID_UKR]],tab_BAZA_Ukrepi[Kratek opis],0)),\"\")","v":""},null,null,null,null,null,null,null,null,1,1,"",0]
[null,70,{"$f":"Osnovni_podatki!$F$12","v":0},{"$f":"Osnovni_podatki!$E$7","v":""},{"$f":"Osnovni_podatki!$D$7","v":""},{"$f":"IFERROR(INDEX(tab_BAZA_LS[ID_LS],MATCH(tab_Ukrepi_casovnica[[#This Row],[Lokalna_skupnost]],tab_BAZA_LS[Naziv lokalne skupnosti],0)),\"\")","v":""},null,null,null,{"$f":"IFERROR(INDEX(tab_BAZA_Ukrepi[ID_UKR],MATCH(tab_Ukrepi_casovnica[[#This Row],[ID_UKR]],tab_BAZA_Ukrepi[Kratek opis],0)),\"\")","v":""},null,null,null,null,null,null,null,null,1,1,"",0]
[null,71,{"$f":"Osnovni_podatki!$F$12","v":0},{"$f":"Osnovni_podatki!$E$7","v":""},{"$f":"Osnovni_podatki!$D$7","v":""},{"$f":"IFERROR(INDEX(tab_BAZA_LS[ID_LS],MATCH(tab_Ukrepi_casovnica[[#This Row],[Lokalna_skupnost]],tab_BAZA_LS[Naziv lokalne skupnosti],0)),\"\")","v":""},null,null,null,{"$f":"IFERROR(INDEX(tab_BAZA_Ukrepi[ID_UKR],MATCH(tab_Ukrepi_casovnica[[#This Row],[ID_UKR]],tab_BAZA_Ukrepi[Kratek opis],0)),\"\")","v":""},null,null,null,null,null,null,null,null,1,1,"",0]
[null,72,{"$f":"Osnovni_podatki!$F$12","v":0},{"$f":"Osnovni_podatki!$E$7","v":""},{"$f":"Osnovni_podatki!$D$7","v":""},{"$f":"IFERROR(INDEX(tab_BAZA_LS[ID_LS],MATCH(tab_Ukrepi_casovnica[[#This Row],[Lokalna_skupnost]],tab_BAZA_LS[Naziv lokalne skupnosti],0)),\"\")","v":""},null,null,null,{"$f":"IFERROR(INDEX(tab_BAZA_Ukrepi[ID_UKR],MATCH(tab_Ukrepi_casovnica[[#This Row],[ID_UKR]],tab_BAZA_Ukrepi[Kratek opis],0)),\"\")","v":""},null,null,null,null,null,null,null,null,1,1,"",0]
[null,73,{"$f":"Osnovni_podatki!$F$12","v":0},{"$f":"Osnovni_podatki!$E$7","v":""},{"$f":"Osnovni_podatki!$D$7","v":""},{"$f":"IFERROR(INDEX(tab_BAZA_LS[ID_LS],MATCH(tab_Ukrepi_casovnica[[#This Row],[Lokalna_skupnost]],tab_BAZA_LS[Naziv lokalne skupnosti],0)),\"\")","v":""},null,null,null,{"$f":"IFERROR(INDEX(tab_BAZA_Ukrepi[ID_UKR],MATCH(tab_Ukrepi_casovnica[[#This Row],[ID_UKR]],tab_BAZA_Ukrepi[Kratek opis],0)),\"\")","v":""},null,null,null,null,null,null,null,null,1,1,"",0]
[null,74,{"$f":"Osnovni_podatki!$F$12","v":0},{"$f":"Osnovni_podatki!$E$7","v":""},{"$f":"Osnovni_podatki!$D$7","v":""},{"$f":"IFERROR(INDEX(tab_BAZA_LS[ID_LS],MATCH(tab_Ukrepi_casovnica[[#This Row],[Lokalna_skupnost]],tab_BAZA_LS[Naziv lokalne skupnosti],0)),\"\")","v":""},null,null,null,{"$f":"IFERROR(INDEX(tab_BAZA_Ukrepi[ID_UKR],MATCH(tab_Ukrepi_casovnica[[#This Row],[ID_UKR]],tab_BAZA_Ukrepi[Kratek opis],0)),\"\")","v":""},null,null,null,null,null,null,null,null,1,1,"",0]
[null,75,{"$f":"Osnovni_podatki!$F$12","v":0},{"$f":"Osnovni_podatki!$E$7","v":""},{"$f":"Osnovni_podatki!$D$7","v":""},{"$f":"IFERROR(INDEX(tab_BAZA_LS[ID_LS],MATCH(tab_Ukrepi_casovnica[[#This Row],[Lokalna_skupnost]],tab_BAZA_LS[Naziv lokalne skupnosti],0)),\"\")","v":""},null,null,null,{"$f":"IFERROR(INDEX(tab_BAZA_Ukrepi[ID_UKR],MATCH(tab_Ukrepi_casovnica[[#This Row],[ID_UKR]],tab_BAZA_Ukrepi[Kratek opis],0)),\"\")","v":""},null,null,null,null,null,null,null,null,1,1,"",0]
[null,76,{"$f":"Osnovni_podatki!$F$12","v":0},{"$f":"Osnovni_podatki!$E$7","v":""},{"$f":"Osnovni_podatki!$D$7","v":""},{"$f":"IFERROR(INDEX(tab_BAZA_LS[ID_LS],MATCH(tab_Ukrepi_casovnica[[#This Row],[Lokalna_skupnost]],tab_BAZA_LS[Naziv lokalne skupnosti],0)),\"\")","v":""},null,null,null,{"$f":"IFERROR(INDEX(tab_BAZA_Ukrepi[ID_UKR],MATCH(tab_Ukrepi_casovnica[[#This Row],[ID_UKR]],tab_BAZA_Ukrepi[Kratek opis],0)),\"\")","v":""},null,null,null,null,null,null,null,null,1,1,"",0]
[null,77,{"$f":"Osnovni_podatki!$F$12","v":0},{"$f":"Osnovni_podatki!$E$7","v":""},{"$f":"Osnovni_podatki!$D$7","v":""},{"$f":"IFERROR(INDEX(tab_BAZA_LS[ID_LS],MATCH(tab_Ukrepi_casovnica[[#This Row],[Lokalna_skupnost]],tab_BAZA_LS[Naziv lokalne skupnosti],0)),\"\")","v":""},null,null,null,{"$f":"IFERROR(INDEX(tab_BAZA_Ukrepi[ID_UKR],MATCH(tab_Ukrepi_casovnica[[#This Row],[ID_UKR]],tab_BAZA_Ukrepi[Kratek opis],0)),\"\")","v":""},null,null,null,null,null,null,null,null,1,1,"",0]
[null,78,{"$f":"Osnovni_podatki!$F$12","v":0},{"$f":"Osnovni_podatki!$E$7","v":""},{"$f":"Osnovni_podatki!$D$7","v":""},{"$f":"IFERROR(INDEX(tab_BAZA_LS[ID_LS],MATCH(tab_Ukrepi_casovnica[[#This Row],[Lokalna_skupnost]],tab_BAZA_LS[Naziv lokalne skupnosti],0)),\"\")","v":""},null,null,null,{"$f":"IFERROR(INDEX(tab_BAZA_Ukrepi[ID_UKR],MATCH(tab_Ukrepi_casovnica[[#This Row],[ID_UKR]],tab_BAZA_Ukrepi[Kratek opis],0)),\"\")","v":""},null,null,null,null,null,null,null,null,1,1,"",0]
[null,79,{"$f":"Osnovni_podatki!$F$12","v":0},{"$f":"Osnovni_podatki!$E$7","v":""},{"$f":"Osnovni_podatki!$D$7","v":""},{"$f":"IFERROR(INDEX(tab_BAZA_LS[ID_LS],MATCH(tab_Ukrepi_casovnica[[#This Row],[Lokalna_skupnost]],tab_BAZA_LS[Naziv lokalne skupnosti],0)),\"\")","v":""},null,null,null,{"$f":"IFERROR(INDEX(tab_BAZA_Ukrepi[ID_UKR],MATCH(tab_Ukrepi_casovnica[[#This Row],[ID_UKR]],tab_BAZA_Ukrepi[Kratek opis],0)),\"\")","v":""},null,null,null,null,null,null,null,null,1,1,"",0]
[null,80,{"$f":"Osnovni_podatki!$F$12","v":0},{"$f":"Osnovni_podatki!$E$7","v":""},{"$f":"Osnovni_podatki!$D$7","v":""},{"$f":"IFERROR(INDEX(tab_BAZA_LS[ID_LS],MATCH(tab_Ukrepi_casovnica[[#This Row],[Lokalna_skupnost]],tab_BAZA_LS[Naziv lokalne skupnosti],0)),\"\")","v":""},null,null,null,{"$f":"IFERROR(INDEX(tab_BAZA_Ukrepi[ID_UKR],MATCH(tab_Ukrepi_casovnica[[#This Row],[ID_UKR]],tab_BAZA_Ukrepi[Kratek opis],0)),\"\")","v":""},null,null,null,null,null,null,null,null,1,1,"",0]
[null,81,{"$f":"Osnovni_podatki!$F$12","v":0},{"$f":"Osnovni_podatki!$E$7","v":""},{"$f":"Osnovni_podatki!$D$7","v":""},{"$f":"IFERROR(INDEX(tab_BAZA_LS[ID_LS],MATCH(tab_Ukrepi_casovnica[[#This Row],[Lokalna_skupnost]],tab_BAZA_LS[Naziv lokalne skupnosti],0)),\"\")","v":""},null,null,null,{"$f":"IFERROR(INDEX(tab_BAZA_Ukrepi[ID_UKR],MATCH(tab_Ukrepi_casovnica[[#This Row],[ID_UKR]],tab_BAZA_Ukrepi[Kratek opis],0)),\"\")","v":""},null,null,null,null,null,null,null,null,1,1,"",0]
[null,82,{"$f":"Osnovni_podatki!$F$12","v":0},{"$f":"Osnovni_podatki!$E$7","v":""},{"$f":"Osnovni_podatki!$D$7","v":""},{"$f":"IFERROR(INDEX(tab_BAZA_LS[ID_LS],MATCH(tab_Ukrepi_casovnica[[#This Row],[Lokalna_skupnost]],tab_BAZA_LS[Naziv lokalne skupnosti],0)),\"\")","v":""},null,null,null,{"$f":"IFERROR(INDEX(tab_BAZA_Ukrepi[ID_UKR],MATCH(tab_Ukrepi_casovnica[[#This Row],[ID_UKR]],tab_BAZA_Ukrepi[Kratek opis],0)),\"\")","v":""},null,null,null,null,null,null,null,null,1,1,"",0]
[null,83,{"$f":"Osnovni_podatki!$F$12","v":0},{"$f":"Osnovni_podatki!$E$7","v":""},{"$f":"Osnovni_podatki!$D$7","v":""},{"$f":"IFERROR(INDEX(tab_BAZA_LS[ID_LS],MATCH(tab_Ukrepi_casovnica[[#This Row],[Lokalna_skupnost]],tab_BAZA_LS[Naziv lokalne skupnosti],0)),\"\")","v":""},null,null,null,{"$f":"IFERROR(INDEX(tab_BAZA_Ukrepi[ID_UKR],MATCH(tab_Ukrepi_casovnica[[#This Row],[ID_UKR]],tab_BAZA_Ukrepi[Kratek opis],0)),\"\")","v":""},null,null,null,null,null,null,null,null,{"$f":"IF(AND(J94=\"UK_9\",K94=\"\"),0,1)","v":1},{"$f":"IF(AND(ISBLANK(G94),ISBLANK(H94),ISBLANK(I94),ISBLANK(L94),ISBLANK(M94),ISBLANK(N94),ISBLANK(O94)),1,IF(OR(ISBLANK(G94),ISBLANK(H94),ISBLANK(I94),ISBLANK(L94),ISBLANK(M94),ISBLANK(N94),ISBLANK(O94)),0,1))","v":1},{"$f":"G94&H94&I94","v":""},0]
[null,84,{"$f":"Osnovni_podatki!$F$12","v":0},{"$f":"Osnovni_podatki!$E$7","v":""},{"$f":"Osnovni_podatki!$D$7","v":""},{"$f":"IFERROR(INDEX(tab_BAZA_LS[ID_LS],MATCH(tab_Ukrepi_casovnica[[#This Row],[Lokalna_skupnost]],tab_BAZA_LS[Naziv lokalne skupnosti],0)),\"\")","v":""},null,null,null,{"$f":"IFERROR(INDEX(tab_BAZA_Ukrepi[ID_UKR],MATCH(tab_Ukrepi_casovnica[[#This Row],[ID_UKR]],tab_BAZA_Ukrepi[Kratek opis],0)),\"\")","v":""},null,null,null,null,null,null,null,null,1,1,"",0]
[null,85,{"$f":"Osnovni_podatki!$F$12","v":0},{"$f":"Osnovni_podatki!$E$7","v":""},{"$f":"Osnovni_podatki!$D$7","v":""},{"$f":"IFERROR(INDEX(tab_BAZA_LS[ID_LS],MATCH(tab_Ukrepi_casovnica[[#This Row],[Lokalna_skupnost]],tab_BAZA_LS[Naziv lokalne skupnosti],0)),\"\")","v":""},null,null,null,{"$f":"IFERROR(INDEX(tab_BAZA_Ukrepi[ID_UKR],MATCH(tab_Ukrepi_casovnica[[#This Row],[ID_UKR]],tab_BAZA_Ukrepi[Kratek opis],0)),\"\")","v":""},null,null,null,null,null,null,null,null,1,1,"",0]
[null,86,{"$f":"Osnovni_podatki!$F$12","v":0},{"$f":"Osnovni_podatki!$E$7","v":""},{"$f":"Osnovni_podatki!$D$7","v":""},{"$f":"IFERROR(INDEX(tab_BAZA_LS[ID_LS],MATCH(tab_Ukrepi_casovnica[[#This Row],[Lokalna_skupnost]],tab_BAZA_LS[Naziv lokalne skupnosti],0)),\"\")","v":""},null,null,null,{"$f":"IFERROR(INDEX(tab_BAZA_Ukrepi[ID_UKR],MATCH(tab_Ukrepi_casovnica[[#This Row],[ID_UKR]],tab_BAZA_Ukrepi[Kratek opis],0)),\"\")","v":""},null,null,null,null,null,null,null,null,1,1,"",0]
[null,87,{"$f":"Osnovni_podatki!$F$12","v":0},{"$f":"Osnovni_podatki!$E$7","v":""},{"$f":"Osnovni_podatki!$D$7","v":""},{"$f":"IFERROR(INDEX(tab_BAZA_LS[ID_LS],MATCH(tab_Ukrepi_casovnica[[#This Row],[Lokalna_skupnost]],tab_BAZA_LS[Naziv lokalne skupnosti],0)),\"\")","v":""},null,null,null,{"$f":"IFERROR(INDEX(tab_BAZA_Ukrepi[ID_UKR],MATCH(tab_Ukrepi_casovnica[[#This Row],[ID_UKR]],tab_BAZA_Ukrepi[Kratek opis],0)),\"\")","v":""},null,null,null,null,null,null,null,null,1,1,"",0]
[null,88,{"$f":"Osnovni_podatki!$F$12","v":0},{"$f":"Osnovni_podatki!$E$7","v":""},{"$f":"Osnovni_podatki!$D$7","v":""},{"$f":"IFERROR(INDEX(tab_BAZA_LS[ID_LS],MATCH(tab_Ukrepi_casovnica[[#This Row],[Lokalna_skupnost]],tab_BAZA_LS[Naziv lokalne skupnosti],0)),\"\")","v":""},null,null,null,{"$f":"IFERROR(INDEX(tab_BAZA_Ukrepi[ID_UKR],MATCH(tab_Ukrepi_casovnica[[#This Row],[ID_UKR]],tab_BAZA_Ukrepi[Kratek opis],0)),\"\")","v":""},null,null,null,null,null,null,null,null,1,1,"",0]
[null,89,{"$f":"Osnovni_podatki!$F$12","v":0},{"$f":"Osnovni_podatki!$E$7","v":""},{"$f":"Osnovni_podatki!$D$7","v":""},{"$f":"IFERROR(INDEX(tab_BAZA_LS[ID_LS],MATCH(tab_Ukrepi_casovnica[[#This Row],[Lokalna_skupnost]],tab_BAZA_LS[Naziv lokalne skupnosti],0)),\"\")","v":""},null,null,null,{"$f":"IFERROR(INDEX(tab_BAZA_Ukrepi[ID_UKR],MATCH(tab_Ukrepi_casovnica[[#This Row],[ID_UKR]],tab_BAZA_Ukrepi[Kratek opis],0)),\"\")","v":""},null,null,null,null,null,null,null,null,1,1,"",0]
[null,90,{"$f":"Osnovni_podatki!$F$12","v":0},{"$f":"Osnovni_podatki!$E$7","v":""},{"$f":"Osnovni_podatki!$D$7","v":""},{"$f":"IFERROR(INDEX(tab_BAZA_LS[ID_LS],MATCH(tab_Ukrepi_casovnica[[#This Row],[Lokalna_skupnost]],tab_BAZA_LS[Naziv lokalne skupnosti],0)),\"\")","v":""},null,null,null,{"$f":"IFERROR(INDEX(tab_BAZA_Ukrepi[ID_UKR],MATCH(tab_Ukrepi_casovnica[[#This Row],[ID_UKR]],tab_BAZA_Ukrepi[Kratek opis],0)),\"\")","v":""},null,null,null,null,null,null,null,null,1,1,"",0]
[null,91,{"$f":"Osnovni_podatki!$F$12","v":0},{"$f":"Osnovni_podatki!$E$7","v":""},{"$f":"Osnovni_podatki!$D$7","v":""},{"$f":"IFERROR(INDEX(tab_BAZA_LS[ID_LS],MATCH(tab_Ukrepi_casovnica[[#This Row],[Lokalna_skupnost]],tab_BAZA_LS[Naziv lokalne skupnosti],0)),\"\")","v":""},null,null,null,{"$f":"IFERROR(INDEX(tab_BAZA_Ukrepi[ID_UKR],MATCH(tab_Ukrepi_casovnica[[#This Row],[ID_UKR]],tab_BAZA_Ukrepi[Kratek opis],0)),\"\")","v":""},null,null,null,null,null,null,null,null,1,1,"",0]
[null,92,{"$f":"Osnovni_podatki!$F$12","v":0},{"$f":"Osnovni_podatki!$E$7","v":""},{"$f":"Osnovni_podatki!$D$7","v":""},{"$f":"IFERROR(INDEX(tab_BAZA_LS[ID_LS],MATCH(tab_Ukrepi_casovnica[[#This Row],[Lokalna_skupnost]],tab_BAZA_LS[Naziv lokalne skupnosti],0)),\"\")","v":""},null,null,null,{"$f":"IFERROR(INDEX(tab_BAZA_Ukrepi[ID_UKR],MATCH(tab_Ukrepi_casovnica[[#This Row],[ID_UKR]],tab_BAZA_Ukrepi[Kratek opis],0)),\"\")","v":""},null,null,null,null,null,null,null,null,1,1,"",0]
[null,93,{"$f":"Osnovni_podatki!$F$12","v":0},{"$f":"Osnovni_podatki!$E$7","v":""},{"$f":"Osnovni_podatki!$D$7","v":""},{"$f":"IFERROR(INDEX(tab_BAZA_LS[ID_LS],MATCH(tab_Ukrepi_casovnica[[#This Row],[Lokalna_skupnost]],tab_BAZA_LS[Naziv lokalne skupnosti],0)),\"\")","v":""},null,null,null,{"$f":"IFERROR(INDEX(tab_BAZA_Ukrepi[ID_UKR],MATCH(tab_Ukrepi_casovnica[[#This Row],[ID_UKR]],tab_BAZA_Ukrepi[Kratek opis],0)),\"\")","v":""},null,null,null,null,null,null,null,null,1,1,"",0]
[null,94,{"$f":"Osnovni_podatki!$F$12","v":0},{"$f":"Osnovni_podatki!$E$7","v":""},{"$f":"Osnovni_podatki!$D$7","v":""},{"$f":"IFERROR(INDEX(tab_BAZA_LS[ID_LS],MATCH(tab_Ukrepi_casovnica[[#This Row],[Lokalna_skupnost]],tab_BAZA_LS[Naziv lokalne skupnosti],0)),\"\")","v":""},null,null,null,{"$f":"IFERROR(INDEX(tab_BAZA_Ukrepi[ID_UKR],MATCH(tab_Ukrepi_casovnica[[#This Row],[ID_UKR]],tab_BAZA_Ukrepi[Kratek opis],0)),\"\")","v":""},null,null,null,null,null,null,null,null,1,1,"",0]
[null,95,{"$f":"Osnovni_podatki!$F$12","v":0},{"$f":"Osnovni_podatki!$E$7","v":""},{"$f":"Osnovni_podatki!$D$7","v":""},{"$f":"IFERROR(INDEX(tab_BAZA_LS[ID_LS],MATCH(tab_Ukrepi_casovnica[[#This Row],[Lokalna_skupnost]],tab_BAZA_LS[Naziv lokalne skupnosti],0)),\"\")","v":""},null,null,null,{"$f":"IFERROR(INDEX(tab_BAZA_Ukrepi[ID_UKR],MATCH(tab_Ukrepi_casovnica[[#This Row],[ID_UKR]],tab_BAZA_Ukrepi[Kratek opis],0)),\"\")","v":""},null,null,null,null,null,null,null,null,1,1,"",0]
[null,96,{"$f":"Osnovni_podatki!$F$12","v":0},{"$f":"Osnovni_podatki!$E$7","v":""},{"$f":"Osnovni_podatki!$D$7","v":""},{"$f":"IFERROR(INDEX(tab_BAZA_LS[ID_LS],MATCH(tab_Ukrepi_casovnica[[#This Row],[Lokalna_skupnost]],tab_BAZA_LS[Naziv lokalne skupnosti],0)),\"\")","v":""},null,null,null,{"$f":"IFERROR(INDEX(tab_BAZA_Ukrepi[ID_UKR],MATCH(tab_Ukrepi_casovnica[[#This Row],[ID_UKR]],tab_BAZA_Ukrepi[Kratek opis],0)),\"\")","v":""},null,null,null,null,null,null,null,null,1,1,"",0]
[null,97,{"$f":"Osnovni_podatki!$F$12","v":0},{"$f":"Osnovni_podatki!$E$7","v":""},{"$f":"Osnovni_podatki!$D$7","v":""},{"$f":"IFERROR(INDEX(tab_BAZA_LS[ID_LS],MATCH(tab_Ukrepi_casovnica[[#This Row],[Lokalna_skupnost]],tab_BAZA_LS[Naziv lokalne skupnosti],0)),\"\")","v":""},null,null,null,{"$f":"IFERROR(INDEX(tab_BAZA_Ukrepi[ID_UKR],MATCH(tab_Ukrepi_casovnica[[#This Row],[ID_UKR]],tab_BAZA_Ukrepi[Kratek opis],0)),\"\")","v":""},null,null,null,null,null,null,null,null,1,1,"",0]
[null,98,{"$f":"Osnovni_podatki!$F$12","v":0},{"$f":"Osnovni_podatki!$E$7","v":""},{"$f":"Osnovni_podatki!$D$7","v":""},{"$f":"IFERROR(INDEX(tab_BAZA_LS[ID_LS],MATCH(tab_Ukrepi_casovnica[[#This Row],[Lokalna_skupnost]],tab_BAZA_LS[Naziv lokalne skupnosti],0)),\"\")","v":""},null,null,null,{"$f":"IFERROR(INDEX(tab_BAZA_Ukrepi[ID_UKR],MATCH(tab_Ukrepi_casovnica[[#This Row],[ID_UKR]],tab_BAZA_Ukrepi[Kratek opis],0)),\"\")","v":""},null,null,null,null,null,null,null,null,1,1,"",0]
[null,99,{"$f":"Osnovni_podatki!$F$12","v":0},{"$f":"Osnovni_podatki!$E$7","v":""},{"$f":"Osnovni_podatki!$D$7","v":""},{"$f":"IFERROR(INDEX(tab_BAZA_LS[ID_LS],MATCH(tab_Ukrepi_casovnica[[#This Row],[Lokalna_skupnost]],tab_BAZA_LS[Naziv lokalne skupnosti],0)),\"\")","v":""},null,null,null,{"$f":"IFERROR(INDEX(tab_BAZA_Ukrepi[ID_UKR],MATCH(tab_Ukrepi_casovnica[[#This Row],[ID_UKR]],tab_BAZA_Ukrepi[Kratek opis],0)),\"\")","v":""},null,null,null,null,null,null,null,null,1,1,"",0]
[null,100,{"$f":"Osnovni_podatki!$F$12","v":0},{"$f":"Osnovni_podatki!$E$7","v":""},{"$f":"Osnovni_podatki!$D$7","v":""},{"$f":"IFERROR(INDEX(tab_BAZA_LS[ID_LS],MATCH(tab_Ukrepi_casovnica[[#This Row],[Lokalna_skupnost]],tab_BAZA_LS[Naziv lokalne skupnosti],0)),\"\")","v":""},null,null,null,{"$f":"IFERROR(INDEX(tab_BAZA_Ukrepi[ID_UKR],MATCH(tab_Ukrepi_casovnica[[#This Row],[ID_UKR]],tab_BAZA_Ukrepi[Kratek opis],0)),\"\")","v":""},null,null,null,null,null,null,null,null,{"$f":"IF(AND(J111=\"UK_9\",K111=\"\"),0,1)","v":1},{"$f":"IF(AND(ISBLANK(G111),ISBLANK(H111),ISBLANK(I111),ISBLANK(L111),ISBLANK(M111),ISBLANK(N111),ISBLANK(O111)),1,IF(OR(ISBLANK(G111),ISBLANK(H111),ISBLANK(I111),ISBLANK(L111),ISBLANK(M111),ISBLANK(N111),ISBLANK(O111)),0,1))","v":1},{"$f":"G111&H111&I111","v":""},0]
[]
[]
[]
[]
[]
[]
[]
[null,null,null,null,null,"Komentar:"]

{"sheet":"Ukrepi_ucinki","index":6,"n_rows":21,"n_cols":16,"rows_kept":21,"cut":false,"hidden":false,"merged":[[6,5,6,6],[8,2,8,4],[8,5,8,7],[20,5,20,10]]}
[null,null,null,null,null,null,null,"Napake"]
[]
[]
[null,null,null,null,null,null,null,{"$f":"IF(P11>0,\"Niso izpolnjena vsa zahtevana polja\",\"\")","v":""}]
[]
[]
[null,null,null,null,null,"Zbirni pregled ukrepov začne veljati:   ",null,{"$f":"Lokalne_skupnosti!$H$8","v":" "}]
[]
[null,"Tabela 3:","SKRITI STOLPCI",null,null,"Podatki o načrtovanih učinkih ukrepov"]
[null,"ID","Mat. štev. ODS","Leto","Mesec",{"$f":"IF(Osnovni_podatki!$F$12=BAZA_in_sifranti!$N$17,\"Identifikacijska oznaka skupine ukrepov [Odsek prenosnega plinovoda / Plin]\",\"Identifikacijska oznaka skupine ukrepov [Lokalna skupnost / Plin]\")","v":"Identifikacijska oznaka skupine ukrepov [Lokalna skupnost / Plin]"},"Ukrepi, ki so potrebni za prevzem obnovljivega ali nefosilnega plina ali vodika [ID oznake]","Zmogljivost / dnevna količina obnovljivega ali nefosilnega plina ali vodika, ki ga je sistem sposoben prevzeti po izvedenem ukrepu [MWh/dan]","Dosežena stopnja izvedbe sklopa ukrepov [%]","Priloge in dokazila (reference, viri) ali povezave na spletno stran","Dodatki in komentarji",null,null,null,null,"Preverjanje vnosov v obvezna polja (mora biti 0)"]
[null,"ID","Mat.stev.ODS","Leto","Mesec","ID_SUKR","Drugi_ukr","delez_po_ukr","st_dosezenosti","Priloge","Dodatki",null,null,null,null,{"$f":"SUM(Q12:INDEX(P:P,MAX(ROW(tab_Ukrepi_ucinki[]))))","v":0}]
[]
[]
[]
[]
[]
[]
[]
[]
[null,null,null,null,null,"Komentar:"]
[null,null,null,null,null,"Za zdaj ni komentarja"]

{"sheet":"Povezani_podatki","index":7,"n_rows":20,"n_cols":16,"rows_kept":20,"cut":false,"hidden":false,"merged":[[6,5,6,6],[8,2,8,4],[8,5,8,7],[20,5,20,13]]}
[null,null,null,null,null,null,null,"Napake"]
[]
[]
[null,null,null,null,null,null,null,{"$f":"IF(P11>0,\"Niso izpolnjena vsa zahtevana polja\",\"\")","v":""}]
[]
[]
[null,null,null,null,null,"Zbirni pregled ukrepov začne veljati:   ",null,{"$f":"Lokalne_skupnosti!$H$8","v":" "}]
[]
[null,"Tabela 4:","SKRITI STOLPCI",null,null,"Povezani podatki"]
[null,"ID","Mat. štev. ODS","Leto","Mesec","ID LS",{"$f":"IF(Osnovni_podatki!$F$12=BAZA_in_sifranti!$N$17,\"Odsek prenosnega plinovoda\",\"Lokalna skupnost\")","v":"Lokalna skupnost"},"Plin za katerega se ocenujejo možnosti za proizvodnjo","Možnosti za proizvodnjo plinov obnovljivega ali nefosilnega izvora ter vodika na izbrani lokaciji","Interes za proizvodnjo izbranega plina na izbrani lokaciji","Ocena potenciala plinovodnega sistema za povezovanje s sistemom distribucije in prenosa električne energije za izravnavo in druge sistemske storitve","Opis storitve, ki se nudi elektroenergetskemu sistemu","Iz analize izhaja primernost plinovodnega sistema","Potrebne so prilagoditve trošil",null,"Preverjanje vnosov v obvezna polja (mora biti 0)"]
[null,"ID","Mat.stev.ODS","Leto","Mesec","ID_LS","Lokalna_skupnost","Ime_plin_z_proiz","Moz_za_proiz","Int_za_proiz","Ocen_potenc_pov_sist_EE","Opis_storitve_za_EE_sist","Primernost_PS","Prilag_trosil",null,{"$f":"SUM(P12:INDEX(P:P,MAX(ROW(tab_Povezani_podatki[]))))","v":0}]
[]
[]
[]
[]
[]
[]
[]
[]
[null,null,null,null,null,"Komentar:"]